Cogmind - Beta 15 @@@ ROGUE MODE // 2025.08.15 @ 07:50:01 Player: Dadrick Result: Destroyed by H-88 Terminator with KE Penetrator Performance ------------- Evolutions (8) 4000 Regions Visited (31) 6200 Robots Destroyed (476) 2380 Value Destroyed (20806) 20806 Prototype IDs (69) 1380 Alien Tech Used (3) 600 Bonus (12586) 12586 TOTAL SCORE: 47952 Bonus ------- High Alert Combat Kills 4021 Follower Combat Kills 2388 Entered Garrisons 600 Aligned with FarCom 300 Acquired ECA 300 Met Zhirov 300 Met Warlord at Base 500 MAIN.C Attacked Warlord 500 Warlord Defense Kills 1378 Built Enhanced Grunts 300 Met R17 at Cetus 500 Met R17 at Research 2000 Friendly Fire -501 Cogmind --------- Core Integrity 0/1450 Matter 296/300 Energy 100/100 System Corruption 26% Temperature Cool (0) Movement Hovering (60) Location -2/Garrison Parts ------- > --- POWER (3) -------- (None) > --- PROPULSION (6) --- Combat Linear Gravjet Cooled Q-thruster > --- UTILITY (10) ----- Enhanced Optical Array Advanced Hacking Suite > --- WEAPON (4) ------- (None) > --- INVENTORY (5) ---- Light Quantum Reactor Quantum Capacitor Improved System Shield Linear Accelerator Peak State ------------ > --- POWER ------------ Light Antimatter Reactor Light Particle Reactor Light Quantum Reactor > --- PROPULSION ------- Heavy Siege Treads Heavy Siege Treads Armored Heavy Treads > --- UTILITY ---------- Experimental Coolant Injector Huge Storage Unit Energy Well Enhanced Optical Array Advanced Signal Interpreter Advanced Terrain Scanner Advanced Targeting Computer Experimental Core Analyzer Advanced Force Field Hacking Suite > --- WEAPON ----------- Enhanced Quantum Rifle Enhanced Quantum Rifle Enhanced Coil Gun Enhanced Coil Gun > --- INVENTORY -------- Light Quantum Reactor Heavy Siege Treads Heavy Siege Treads Advanced Heat Sink Matter Compressor Encrypted Comm Array Improved Weapon Cycler Advanced Force Field Advanced Point Defense System Advanced Hacking Suite Assault Drone Bay Enhanced Quantum Rifle Enhanced Nova Cannon Enhanced Nova Cannon KE Penetrator KE Penetrator KE Penetrator Linear Accelerator Compact Mass Driver Gamma Bomb Array Advanced Remote Datajack Heavy Flail [Rating: 171] Favorites ----------- Power Improved Deuterium Engine Engine Improved Deuterium Engine Power Core Reinforced Fission Core Reactor Antimatter Reactor Propulsion Centrium Heavy Treads Treads Centrium Heavy Treads Leg Aluminum Leg Hover Unit Improved Antigrav System Flight Unit Field Propulsion Drive Utility Huge Storage Unit Device Improved Heat Sink Storage Huge Storage Unit Processor Advanced Targeting Computer Hackware Hacking Suite Protection Centrium Medium Armor Plating Weapon Heavy Particle Gun Energy Gun Heavy Particle Gun Energy Cannon Enhanced Nova Cannon Ballistic Gun Coil Gun Ballistic Cannon Heavy Linear Accelerator Launcher Rocket Launcher Special Weapon Mining Laser Impact Weapon Heavy Flail Build | -11 -10 -10 -10 -9 -8 -8 -7 -7 -7 -6 -6 -6 -6 -6 -6 -6 -6 -6 -5 -5 -5 -5 -4 -4 -4 -4 -4 -3 -3 -2 -2 ------- Run | Yrd Mat Min Exi Min Mat Sto Fac Gar Fac Fac Was Fac Gar Fac Ext Cet Arc Hub Fac Upp Upp Zhi Pro Fac Upp Upp War Pro Res Res Gar Slots Evolved 16 | . . . . . 4 . 2 . . 2 . . . . . . . . 2 . . . . 2 . . . . 2 2 . Power 2 | . . . . . . . . . . . . . . . . . . . 1 . . . . . . . . . . 1 . Propulsion 4 | . . . . . 1 . . . . 1 . . . . . . . . . . . . . . . . . . 2 . . Utility 8 | . . . . . 2 . 1 . . 1 . . . . . . . . 1 . . . . 2 . . . . . 1 . Weapon 2 | . . . . . 1 . 1 . . . . . . . . . . . . . . . . . . . . . . . . Parts Attached 301 | 7 16 6 2 6 24 18 9 12 13 6 6 7 9 1 8 5 2 1 2 . 1 2 11 4 3 3 16 12 24 65 . Power 35 | 1 2 1 . 1 3 1 1 1 1 1 1 . . 1 1 . . . 1 . . . 2 . . . 3 1 . 12 . Engine 11 | 1 2 . . . 1 1 1 1 1 . . . . 1 1 . . . 1 . . . . . . . . . . . . Core 6 | . . 1 . 1 2 . . . . 1 . . . . . . . . . . . . 1 . . . . . . . . Reactor 18 | . . . . . . . . . . . 1 . . . . . . . . . . . 1 . . . 3 1 . 12 . Propulsion 70 | 2 4 2 1 1 5 7 1 1 1 1 2 . 3 . 2 2 . . . . . . 1 . . . 2 3 12 17 . Treads 30 | . . . . . 3 7 1 1 1 1 2 . 1 . 2 2 . . . . . . 1 . . . 1 . 4 3 . Leg 25 | 2 4 2 1 1 2 . . . . . . . 2 . . . . . . . . . . . . . 1 . 6 4 . Wheel . | . . . . . . . . . . . . . . . . . . . . . . . . . . . . . . . . Hover 12 | . . . . . . . . . . . . . . . . . . . . . . . . . . . . 2 1 9 . Flight 3 | . . . . . . . . . . . . . . . . . . . . . . . . . . . . 1 1 1 . Utility 104 | 2 3 2 1 2 6 1 5 7 8 3 1 6 1 . 4 1 . . 1 . 1 2 3 3 2 2 8 3 8 18 . Device 52 | 1 2 1 . . 2 . 4 5 4 2 . 2 1 . 1 . . . . . 1 1 2 2 2 2 4 1 3 9 . Storage 7 | 1 1 . 1 . . . . . . . . 1 . . 1 . . . . . . . . . . . 1 . . 1 . Processor 12 | . . . . . 1 . . . . . . 2 . . . . . . 1 . . . . 1 . . 2 . 2 3 . Hackware 7 | . . . . . 2 . . . 1 1 . . . . 1 . . . . . . . . . . . . . 1 1 . Protection 26 | . . 1 . 2 1 1 1 2 3 . 1 1 . . 1 1 . . . . . 1 1 . . . 1 2 2 4 . Artifact . | . . . . . . . . . . . . . . . . . . . . . . . . . . . . . . . . Weapon 92 | 2 7 1 . 2 10 9 2 3 3 1 2 1 5 . 1 2 2 1 . . . . 5 1 1 1 3 5 4 18 . Energy Gun 34 | 2 4 . . . 4 7 2 1 . . 1 1 . . . 1 . 1 . . . . 3 . . 1 1 . . 5 . Energy Cannon 7 | . . . . . . 1 . . . . . . . . 1 . . . . . . . . . . . . 1 . 4 . Ballistic Gun 30 | . 2 1 . . 4 . . . 2 . . . 4 . . 1 2 . . . . . 1 1 1 . 1 3 3 4 . Ballistic Cannon 11 | . . . . 1 . . . 2 . 1 1 . . . . . . . . . . . . . . . 1 1 1 3 . Launcher 5 | . . . . 1 1 1 . . . . . . . . . . . . . . . . 1 . . . . . . 1 . Special Weapon 2 | . 1 . . . . . . . . . . . . . . . . . . . . . . . . . . . . 1 . Impact Weapon 3 | . . . . . 1 . . . 1 . . . 1 . . . . . . . . . . . . . . . . . . Slashing Weapon . | . . . . . . . . . . . . . . . . . . . . . . . . . . . . . . . . Piercing Weapon . | . . . . . . . . . . . . . . . . . . . . . . . . . . . . . . . . Special Melee Weapon . | . . . . . . . . . . . . . . . . . . . . . . . . . . . . . . . . Unidentified Prototypes 29 | . . 1 . . 2 5 . . . . . . . . . 4 . . . . . 3 . . . 1 4 2 4 3 . Corrupted Parts 2 | . . . . . . . . . . . . . . . . . . . . . . . 1 . . . . 1 . . . System Corruption 10 | . . . . . . . . . . . . . . . . . . . . . . . 6 . . . . 4 . . . Parts Lost 100 | . 1 . . 1 2 4 . 1 4 . 7 . 2 . . . . 1 . . 1 . 6 . . 2 19 3 2 43 1 Power 12 | . 1 . . . . . . . 1 . . . . . . . . . . . . . 1 . . . 2 . . 7 . Propulsion 22 | . . . . . . 3 . . 1 . 3 . 1 . . . . . . . . . . . . . 3 . . 10 1 Utility 37 | . . . . 1 1 1 . 1 2 . 3 . . . . . . . . . 1 . 2 . . 1 7 1 1 15 . Weapon 29 | . . . . . 1 . . . . . 1 . 1 . . . . 1 . . . . 3 . . 1 7 2 1 11 . Highest Loss Streak 12 | . 1 . . 1 1 4 . 1 2 . 5 . 2 . . . . 1 . . 1 . 2 . . 2 12 2 1 11 1 To Critical Strikes 1 | . . . . . . . . . . . 1 . . . . . . . . . . . . . . . . . . . . Average Backups 19 | 2 13 14 14 13 21 23 23 23 22 21 5 12 13 13 19 23 23 22 22 22 22 23 22 22 22 22 21 15 21 20 4 Power 1 | . . 1 1 1 1 2 1 1 1 1 . 1 2 1 1 2 2 2 1 2 2 2 2 2 2 2 1 . 1 . 1 Propulsion 2 | . 2 2 1 1 5 3 3 4 3 3 . . . . 1 2 2 2 2 3 3 2 2 2 2 2 1 1 1 1 . Utility 8 | . 3 5 6 5 6 7 10 10 10 11 1 5 4 6 9 10 10 10 10 11 10 11 10 10 10 10 8 5 11 9 2 Weapon 6 | 1 7 6 5 6 7 10 8 8 7 6 2 5 7 5 6 8 9 8 7 6 6 6 5 5 6 6 7 6 6 6 1 Tool/Special . | . . . . . . . . . . . . . . . . . . . . . . . . . . . . . . . . Unused Backups 74 | . 4 . 1 . 4 4 4 3 1 . 9 3 . 2 2 5 1 2 . . . 1 2 3 . 1 2 . 7 11 2 Power 7 | . . . . . 2 . 1 . . . . . . 1 . . . . . . . . 1 1 . . . . . 1 . Propulsion 14 | . 2 . . . 1 1 2 . . . 2 . . . 1 2 . . . . . 1 . . . . . . 2 . . Utility 39 | . 1 . . . . 2 1 2 1 . 7 1 . 1 1 1 1 1 . . . . 1 2 . 1 2 . 3 8 2 Weapon 14 | . 1 . 1 . 1 1 . 1 . . . 2 . . . 2 . 1 . . . . . . . . . . 2 2 . Tool/Special . | . . . . . . . . . . . . . . . . . . . . . . . . . . . . . . . . Average Slot Usage (%) 86 | . 99 100 100 100 99 99 99 92 78 83 60 62 83 86 88 87 85 86 80 88 88 87 85 88 89 88 86 68 76 77 20 Engine 4 | . 14 8 . . . 9 7 7 7 1 3 . . 4 6 6 6 6 5 11 11 11 7 . . . . . . . . Core 1 | . . 5 14 14 8 . . . . 4 1 . . . . . . . . . . . 2 5 5 5 4 . . . . Reactor 2 | . . . . . . . . . . . 1 6 6 1 . . . . . . . . . 5 5 5 5 4 4 9 . Treads 12 | . . . . . 21 26 23 18 14 18 13 13 10 13 15 14 13 13 11 11 11 11 11 10 10 10 9 5 6 9 . Leg 3 | . 28 28 28 28 5 . . . . . . . 3 . . . . . . . . . . . . . . . 10 1 . Device 11 | . 13 7 . 1 3 9 14 17 15 13 3 2 13 13 12 13 13 13 11 11 11 10 10 14 15 15 14 9 9 12 . Storage 6 | . 14 14 14 14 9 9 7 7 7 6 1 5 6 6 6 6 6 6 5 5 5 5 5 5 5 5 5 5 4 4 . Processor 8 | . . . . . . . . . . . . 1 13 13 13 13 13 13 15 17 17 17 17 20 21 21 20 15 16 14 4 Hackware 3 | . . . . . 15 9 7 4 6 12 13 4 . . . . . . . . . . . . . . . . 2 3 4 Protection 5 | . . 6 14 12 7 8 6 7 6 6 5 6 6 6 6 6 6 6 5 5 5 5 5 5 5 5 4 8 5 2 . Energy Gun 9 | . 21 2 . . 12 24 29 23 . . 2 5 2 . . . . 2 5 5 5 5 11 15 10 9 8 4 1 3 . Ballistic Gun 9 | . 3 25 28 24 11 . . . 2 10 3 . 10 20 24 25 20 18 11 11 15 17 8 4 9 10 8 5 5 7 . Ballistic Cannon 2 | . . . . . . . . 2 12 6 8 13 7 . . . . . . . . . . . . . 1 2 2 1 . Impact Weapon 1 | . . . . . 1 2 . 1 1 2 . . 1 5 . . 5 4 4 5 1 . . . . . . . 1 1 . Peak Build Rating 171 | 7 11 15 13 20 43 43 55 75 80 78 92 94 86 86 93 104 106 107 114 114 123 125 128 138 136 138 145 123 153 171 42 Average Rating 85 | 5 10 9 11 14 34 42 51 58 74 75 81 91 78 83 83 91 104 104 108 114 121 123 118 137 135 135 136 101 135 147 40 On Entrance 78 | . 7 11 11 13 15 43 42 52 75 68 77 92 84 86 82 82 104 104 102 114 114 123 124 123 138 136 133 48 119 153 42 Naked Turns . | . . . . . . . . . . . . . . . . . . . . . . . . . . . . . . . . Heaviest Build 197 | 13 30 30 30 34 108 112 111 150 158 134 142 123 88 79 140 132 132 131 139 139 150 150 162 150 161 161 182 173 179 197 . Greatest Support 210 | 20 20 20 20 20 66 66 60 90 90 120 140 140 140 130 130 160 160 160 160 160 160 160 160 160 160 160 160 80 210 210 28 Greatest Overweight (x) 49 | . 1 1 1 1 1 1 1 1 1 1 1 . 4 . 2 1 . . . . . . 1 . 1 1 49 2 2 3 . Average Overweight (x) . | . . 1 1 1 . 1 1 1 1 1 . . . . . . . . . . . . . . 1 . . 1 . . . Largest Inventory Capacity 25 | 8 15 15 25 15 25 25 25 25 25 25 25 15 15 15 25 25 25 25 25 25 25 25 25 25 25 25 25 25 25 25 5 Average Capacity 22 | 7 14 15 15 15 23 25 25 25 25 25 8 14 15 15 22 25 25 25 25 25 25 25 25 25 25 25 25 25 25 24 5 Most Carried 25 | 6 15 15 15 15 25 25 25 25 25 25 23 15 15 15 25 25 25 25 25 25 25 25 25 25 25 25 25 20 25 25 5 Average Carried 21 | 3 13 14 14 14 22 24 24 24 24 23 6 13 14 14 20 24 24 24 24 24 24 24 24 24 24 24 24 15 23 22 5 Final Capacity 25 | 8 15 15 15 15 25 25 25 25 25 25 5 15 15 15 25 25 25 25 25 25 25 25 25 25 25 25 25 25 25 5 5 Final Carried 25 | 6 15 15 15 15 25 25 25 25 24 23 5 15 15 15 25 25 25 25 25 25 25 25 25 25 25 25 20 15 25 5 5 Class Distribution -------------------- 32% | Scavenger-Tank 18% | Tank 11% | Skirmisher 10% | Mutant 5% | Scavenger-Mutant 3% | Derelict-Tank Dominant Class ---------------- Mutant | -10/Materials Mutant | -10/Mines Scavenger-Mutant | -10/Exiles Scavenger-Mutant | -9/Mines Hacker-Skirmisher | -8/Materials Skirmisher | -8/Storage Skirmisher | -7/Factory Skirmisher | -7/Garrison Tank | -7/Factory Hacker-Tank | -6/Factory Hacker-Tank | -6/Waste Tank | -6/Factory Tank | -6/Garrison Tank | -6/Factory Scavenger-Tank | -6/Extension Scavenger-Tank | -6/Cetus Scavenger-Tank | -6/Archives Scavenger-Tank | -6/Hub_04(d) Scavenger-Tank | -5/Factory Scavenger-Tank | -5/Upper Caves Scavenger-Tank | -5/Upper Caves Scavenger-Tank | -5/Zhirov Scavenger-Tank | -4/Proximity Caves Scavenger-Gunner | -4/Factory Scavenger-Tank | -4/Upper Caves Scavenger-Tank | -4/Upper Caves Scavenger-Tank | -4/Warlord Derelict-Tank | -3/Proximity Caves Tank | -3/Research Scavenger-Tank | -2/Research Sprinter | -2/Garrison Resources | -11 -10 -10 -10 -9 -8 -8 -7 -7 -7 -6 -6 -6 -6 -6 -6 -6 -6 -6 -5 -5 -5 -5 -4 -4 -4 -4 -4 -3 -3 -2 -2 ----------- Run | Yrd Mat Min Exi Min Mat Sto Fac Gar Fac Fac Was Fac Gar Fac Ext Cet Arc Hub Fac Upp Upp Zhi Pro Fac Upp Upp War Pro Res Res Gar Matter Collected 12944 | 270 289 163 . 121 908 300 227 208 1296 120 651 1038 195 638 438 194 72 111 358 40 257 50 305 . 303 220 505 354 623 2690 . Remotely 1410 | . . . . . 69 . 50 . 789 120 382 . . . . . . . . . . . . . . . . . . . . Salvage Created 22912 | 114 414 163 . 87 1292 1566 683 970 893 79 1122 897 107 784 1578 351 378 318 300 208 739 117 1322 40 437 403 853 497 420 5780 . Parts 950 | 7 37 8 . 6 86 39 25 28 54 2 11 38 5 34 70 13 3 18 6 3 29 2 35 . 23 17 30 24 13 284 . Haulers Intercepted 20 | . 2 . . . 6 5 1 . 2 . . 2 . . 1 . . . . . . . . . . . . . . 1 . Recyclers Shooed 12 | . 1 1 . . . . . . . . . . . . . . . . 1 . . . . . . . . . . 9 . Parts Field Recycled . | . . . . . . . . . . . . . . . . . . . . . . . . . . . . . . . . Retrieved Matter . | . . . . . . . . . . . . . . . . . . . . . . . . . . . . . . . . Parts Self-Destructed 110 | . . . . . . . . . . . . . . . . . . . . 3 29 2 29 . 23 6 . 18 . . . Prevented 17 | . . . . . . . . . . . . . . . . . . . . . . . 8 . 1 . . 8 . . . Kills | -11 -10 -10 -10 -9 -8 -8 -7 -7 -7 -6 -6 -6 -6 -6 -6 -6 -6 -6 -5 -5 -5 -5 -4 -4 -4 -4 -4 -3 -3 -2 -2 ------- Run | Yrd Mat Min Exi Min Mat Sto Fac Gar Fac Fac Was Fac Gar Fac Ext Cet Arc Hub Fac Upp Upp Zhi Pro Fac Upp Upp War Pro Res Res Gar Combat Hostiles Destroyed 334 | . 13 4 . 2 22 14 10 20 27 2 6 24 5 6 20 5 1 4 3 3 17 . 16 . 6 6 11 7 4 76 . Guns 197 | . 13 4 . 2 19 9 10 14 . . . . . 6 12 5 1 3 3 3 17 . 12 . 6 6 10 2 4 36 . Cannons 61 | . . . . . . . . . 19 1 6 12 2 . 2 . . . . . . . . . . . 1 3 . 15 . AOE 49 | . . . . . 3 3 . 4 8 . . 12 2 . 4 . . 1 . . . . 1 . . . . . . 11 . Classes Destroyed 24 | 2 5 1 . . 4 2 1 . 3 . 1 1 . . 1 . . . . . . . . . . . 1 . 2 . . Worker 27 | . . 1 . . 3 4 . . 3 1 . 2 . 2 1 . . 1 1 . . . . . . . . . . 8 . Builder 39 | . . . . . 4 3 . . 6 1 . . . 5 3 . . 6 1 . . . . . . . . . . 10 . Tunneler 7 | 2 . . . . . . 1 . 1 . . 1 . . 1 . . . . . . . . . . . . . . 1 . Hauler 20 | . 2 . . . 6 5 1 . 2 . . 2 . . 1 . . . . . . . . . . . . . . 1 . Recycler 15 | 1 . . . . 1 4 . . 1 . . . . 2 2 . . . 1 . . . . . . . . . 1 2 . Mechanic 5 | . . . . . . . . . 1 . . . . . 1 . . . . . . . 1 . . . . . . 2 . Operator 11 | . 1 . . . . . 1 . . . . . . . . . 9 . . . . . . . . . . . . . . Watcher 16 | . 1 . . . 3 . 2 . 2 . . 1 . 1 2 1 . . . . . . . 1 . . . . . 2 . Swarmer 63 | . 6 . . . 9 . . 3 . . . . 2 . 4 . . . 1 . 10 . 2 . . 1 2 . . 23 . Saboteur 1 | . . . . . . . . . . . . 1 . . . . . . . . . . . . . . . . . . . Grunt 122 | . 7 4 . 2 6 10 4 12 8 . . 15 3 . 8 . . 2 2 2 5 . 10 . . . 7 . . 15 . Brawler 10 | . . . . . . 1 . . . . . . . . 1 . . . . . 1 . 1 . . . 1 2 . 3 . Duelist 4 | . . . . . . 1 . . 1 . . . . . . . . . . . . . 1 . . . . . . 1 . Protector 5 | . . . . . . . . . 2 . . . . . . . . . . . . . . . . . . . . 3 . Sentry 32 | . . . . . 4 2 1 4 1 . . 3 . 3 5 . 1 1 . 1 1 . 1 . 1 . . 1 . 2 . Specialist 4 | . . . . . 1 . . . 3 . . . . . . . . . . . . . . . . . . . . . . Hunter 31 | . . . . . 2 . . . 4 2 . 3 . 2 . . . . . . . . . . 4 . 1 2 1 10 . Programmer 38 | . . . . . . . 5 1 7 . . 2 . 1 . . . . . . . . . . 1 . . 2 . 19 . Heavy 2 | . . . . . . . . . 1 . . . . . . . . 1 . . . . . . . . . . . . . Behemoth 4 | . . . . . . . . . . . . . . . 2 . . . . . . . 1 . . 1 . . . . . Compactor 6 | . . . . . . . . . . . 6 . . . . . . . . . . . . . . . . . . . . Cetus Guard 5 | . . . . . . . . . . . . . . . . 5 . . . . . . . . . . . . . . . Striker 2 | . . . . . . . . . . . . . . . . . . . . . . . . . . . . . 2 . . Executioner 1 | . . . . . . . . . . . . . . . . . . . . . . . . . . . . . 1 . . Thug 4 | . . . . . . . . . . . . . . . . . . . . . . . . . . 4 . . . . . Savage 1 | . . . . . . . . . . . . . . . 1 . . . . . . . . . . . . . . . . Mutant 1 | . . . . . . . . . . . . . . . . . . . . . . . . . . . 1 . . . . Best Kill Streak 17 | 2 3 2 . 2 6 12 3 8 15 4 3 7 3 7 10 4 4 4 6 3 8 . 5 1 2 4 5 2 3 17 . Combat Bots Only 14 | . 3 2 . 2 6 4 3 8 8 2 3 6 3 2 6 2 1 2 3 3 8 . 5 . 2 4 5 2 3 14 . Max Kills in Single Turn 7 | 1 2 1 . 1 2 4 1 2 5 1 1 6 1 2 4 1 1 4 1 1 2 . 2 1 1 2 2 1 1 7 . Gunslinging 2 | . 1 . . . 1 1 . 1 . . . . . . 1 . . . . . 1 . 1 . . 1 1 . . 2 . Exploded 6 | . . . . . 1 2 . 2 2 . . 6 1 . 1 . . 1 . . . . 1 . . . . . . 4 . Melee . | . . . . . . . . . . . . . . . . . . . . . . . . . . . . . . . . Uniques/NPCs Destroyed . | . . . . . . . . . . . . . . . . . . . . . . . . . . . . . . . . Combat | -11 -10 -10 -10 -9 -8 -8 -7 -7 -7 -6 -6 -6 -6 -6 -6 -6 -6 -6 -5 -5 -5 -5 -4 -4 -4 -4 -4 -3 -3 -2 -2 -------- Run | Yrd Mat Min Exi Min Mat Sto Fac Gar Fac Fac Was Fac Gar Fac Ext Cet Arc Hub Fac Upp Upp Zhi Pro Fac Upp Upp War Pro Res Res Gar Hostile Shots Fired 3146 | . 51 21 . 23 116 84 81 149 141 27 16 200 18 127 150 25 3 41 11 17 76 . 151 . 80 54 376 83 119 885 21 Missed 943 | . 11 6 . 6 39 24 20 47 50 8 1 59 6 44 50 8 2 16 2 6 21 . 38 . 21 11 114 20 30 276 7 Intercepted 1 | . . . . . . . . . . . . . . . . . . . . . . . . . . . . . 1 . . Hits 2203 | . 40 15 . 17 77 60 61 102 91 19 15 141 12 83 100 17 1 25 9 11 55 . 113 . 59 43 262 63 89 609 14 Melee 63 | . . . . . . 3 . . . . 15 4 . . . . . . . . 2 . 2 . . . 16 4 5 12 . Projectile 2140 | . 40 15 . 17 77 57 61 102 91 19 . 137 12 83 100 17 1 25 9 11 53 . 111 . 59 43 246 59 84 597 14 AOE 5 | . . . . . . . . . . . . 2 . . . . . . . . . . . . . . . . 3 . . Critical Strikes 99 | . 1 1 . 1 3 2 3 . 1 . 9 9 1 1 . 2 . 1 . 1 . . 8 . 2 2 14 3 4 30 . Part Disruptions 2 | . . . . . . . . . . . . . . . . . . . . . . . . . . . . . . 2 . Damage Taken 36536 | . 383 209 . 220 1007 991 953 1196 1631 303 660 2087 160 529 828 236 13 179 115 160 495 . 2036 . 497 780 5480 1323 1520 12232 313 Core 3885 | . 82 40 . 15 125 74 55 150 127 19 83 12 . 9 151 24 . 18 18 . 101 . 237 . 44 86 720 154 79 1243 219 Absorbed by Shields 7545 | . . . . . . . . . . . . 103 60 268 418 216 13 183 51 84 453 . 311 . 499 166 975 217 767 2716 45 Reduced by Siege Mode 313 | . . . . . . . . . . . . . . . . 11 . . . . . . 90 . . . . . 147 65 . Ignored by Resistances 258 | . . . . . . 16 34 . . . . 208 . . . . . . . . . . . . . . . . . . . Regen/Repaired (Parts) 2836 | . . . . . . . 116 . . . 366 102 . . 197 . . . 79 . . . . 433 . . 1311 . 232 . . Core Remaining (%) 60 | 100 . . . 45 . 63 . . 52 . . . . . . . . 62 . . . . 64 . . . . 6 93 . . Volleys Fired 1203 | 21 52 18 . 39 75 42 41 45 64 9 27 81 21 25 30 9 2 40 7 12 44 4 98 22 46 32 32 52 31 182 . Largest 4 | 2 2 2 . 2 3 3 4 4 2 1 2 1 1 4 4 4 4 4 3 3 4 1 4 4 4 4 4 3 3 4 . Hottest 304 | 80 130 130 . 100 165 172 220 220 140 70 140 81 75 120 120 120 125 240 146 146 181 80 304 270 230 240 240 156 90 240 . Shots Fired 2564 | 42 91 36 . 49 184 106 152 149 88 9 35 81 21 79 89 36 8 61 19 22 102 4 183 29 94 68 111 68 68 480 . Gun 2068 | 42 78 36 . 20 172 97 152 145 . . . 5 8 79 82 36 8 48 19 22 102 4 176 29 94 68 104 48 67 327 . Cannon 401 | . . . . 15 . . . 2 83 9 35 67 10 . 7 . . 11 . . . . . . . . 7 20 1 134 . Launcher 67 | . . . . 1 10 9 . 2 5 . . 9 3 . . . . 2 . . . . 7 . . . . . . 19 . Special 28 | . 13 . . 13 2 . . . . . . . . . . . . . . . . . . . . . . . . . . Kinetic 1219 | . 19 24 . 35 89 . . 2 83 9 35 67 11 79 82 36 8 35 14 10 58 . 38 3 40 28 56 22 57 279 . Thermal 1267 | 42 72 12 . 13 85 97 152 145 . . . 5 7 . 7 . . 24 5 12 44 4 138 26 54 40 55 35 11 182 . Explosive 32 | . . . . 1 10 . . 2 5 . . 9 3 . . . . 2 . . . . . . . . . . . . . Electromagnetic 46 | . . . . . . 9 . . . . . . . . . . . . . . . . 7 . . . . 11 . 19 . Robot Hit Streak 41 | 5 12 8 . 7 13 10 14 14 6 5 12 7 10 10 15 16 21 22 6 7 10 7 41 7 12 15 9 11 33 20 . Robot Miss Streak 11 | 2 11 5 . 2 5 4 5 4 3 1 2 4 . 3 3 2 . 2 2 3 3 . 2 1 4 3 3 3 2 4 . Penetration Max 2 | . . . . . . . . . 1 . . 1 . 2 1 1 . 1 . 1 1 . 1 . . . 2 . . 2 . Secondary Targets 61 | . 2 1 . 1 4 5 1 4 . . . . . . 1 4 . . . 1 5 . 6 . 1 3 3 1 2 16 . Max Gunslinging Chain 2 | . 1 1 . 1 1 1 1 1 . . . . . . 1 1 . . . 1 1 . 1 . 1 2 1 1 1 2 . Shots Hit Robots 1514 | 25 52 30 . 13 98 70 89 83 51 9 28 43 9 60 51 31 15 20 16 11 47 4 111 7 45 35 76 34 49 302 . Core Hits 910 | 4 63 22 . 6 63 35 29 42 53 3 10 38 10 26 41 22 2 19 5 6 27 2 40 3 18 14 34 13 14 246 . Critical Kills 22 | . . . . . . . . . . 1 . . . 1 6 1 . 1 . . 2 . 2 . . . . . 1 7 . Critical Parts Destroyed 30 | . . . . . 1 2 . . 1 1 . . . 2 6 . 1 1 . 1 1 . 5 . . 1 . . 3 4 . Critical Strikes 81 | . . . . . 4 5 1 3 4 2 . 1 . 3 12 1 1 2 . 1 3 . 7 . . 1 6 . 5 19 . Burn 15 | . . . . . 3 3 1 3 . . . . . . . . . . . . . . . . . . 5 . . . . Meltdown 5 | . . . . . . . . . . . . . . . 2 . . . . . . . . . . . . . . 3 . Destroy 43 | . . . . . 1 . . . . . . . . 1 10 1 . 1 . 1 3 . 7 . . 1 . . 5 12 . Blast 9 | . . . . . . . . . 3 . . 1 . . . . . . . . . . . . . . 1 . . 4 . Smash 9 | . . . . . . 2 . . 1 2 . . . 2 . . 1 1 . . . . . . . . . . . . . Melee Attacks 111 | . . . . . 8 8 5 11 9 4 . . 1 10 . . 11 12 13 1 . . . . . . 6 . 2 10 . Impact 111 | . . . . . 8 8 5 11 9 4 . . 1 10 . . 11 12 13 1 . . . . . . 6 . 2 10 . Slashing . | . . . . . . . . . . . . . . . . . . . . . . . . . . . . . . . . Piercing . | . . . . . . . . . . . . . . . . . . . . . . . . . . . . . . . . Sneak Attacks 33 | . . . . . 3 6 . . 3 2 . . . 4 . . 9 2 3 . . . . . . . . . . 1 . Combat Hostiles . | . . . . . . . . . . . . . . . . . . . . . . . . . . . . . . . . Follow-up Attacks . | . . . . . . . . . . . . . . . . . . . . . . . . . . . . . . . . Damage Inflicted 59097 | 275 655 309 . 106 1925 2568 1972 1778 5609 618 2185 5003 872 1857 2757 796 1029 1078 673 334 1347 142 2944 161 965 1040 2041 1306 1355 15397 . Guns 29286 | 275 655 305 . 106 1283 1285 1954 1563 . . . 70 . 1294 1158 796 129 532 341 334 1347 142 2520 144 965 1040 1915 405 1355 7373 . Cannons 14342 | . . . . . . . . . 3365 411 2185 2886 323 . 527 . . . . . . . . . . . 126 901 . 3618 . Explosions 11973 | . . . . . 392 691 . 215 1867 . . 2047 549 165 1066 . . 286 . . . . 424 . . . . . . 4271 . Melee 3386 | . . . . . 226 592 . . 377 207 . . . 398 . . 900 251 332 . . . . . . . . . . 103 . Ramming 110 | . . 4 . . 24 . 18 . . . . . . . 6 . . 9 . . . . . 17 . . . . . 32 . Kinetic 26584 | . 78 152 . 106 608 . . . 3365 411 2185 2886 323 1294 1158 796 129 251 214 202 988 . 684 24 491 567 1137 788 1249 6498 . Thermal 20537 | 275 577 153 . . 675 1285 1954 1563 565 . . 1273 . . 1593 . . 281 127 132 359 142 1836 120 474 473 904 212 106 5458 . Explosive 3675 | . . . . . 392 . . 215 1224 . . 844 549 165 . . . 286 . . . . . . . . . . . . . Electromagnetic 4805 | . . . . . . 691 . . 78 . . . . . . . . . . . . . 424 . . . . 306 . 3306 . Impact 3386 | . . . . . 226 592 . . 377 207 . . . 398 . . 900 251 332 . . . . . . . . . . 103 . Slashing . | . . . . . . . . . . . . . . . . . . . . . . . . . . . . . . . . Piercing . | . . . . . . . . . . . . . . . . . . . . . . . . . . . . . . . . Highest Corruption 26 | . . . . . . . 4 2 2 . . . . . . . . 2 . . . . 6 . 1 1 7 15 2 25 26 Average Corruption 6 | . . . . . . . 1 1 1 . . . . . . . . 2 . . . . 6 . 1 1 2 8 2 11 25 Corruption Purged 23 | . . . . . . . 4 2 3 . . . . . . . . . . . . . . . . . 5 . . 9 . Corruption Blocked . | . . . . . . . . . . . . . . . . . . . . . . . . . . . . . . . . Effects 186 | . . . . . . . 10 6 8 . . . . . . . . 2 . . . . . . . 3 6 47 6 96 2 Message Errors 32 | . . . . . . . . 1 3 . . . . . . . . . . . . . . . . . . 9 1 18 . Matter Fused 46 | . . . . . . . 3 2 1 . . . . . . . . . . . . . . . . . 1 9 . 29 1 Heat Flow Errors 24 | . . . . . . . 2 2 3 . . . . . . . . . . . . . . . . 1 1 7 1 7 . Energy Discharges 27 | . . . . . . . . . . . . . . . . . . 1 . . . . . . . 1 2 7 1 15 . Parts Rejected 4 | . . . . . . . . . . . . . . . . . . . . . . . . . . . . 1 1 2 . Parts Fused 2 | . . . . . . . . . . . . . . . . . . . . . . . . . . . 1 1 . . . Data Loss (minor) 18 | . . . . . . . 2 1 . . . . . . . . . 1 . . . . . . . . . 6 . 8 . Data Loss (major) 6 | . . . . . . . . . . . . . . . . . . . . . . . . . . 1 . 3 . 2 . Misfires 3 | . . . . . . . 1 . . . . . . . . . . . . . . . . . . . . . . 2 . Alerts 7 | . . . . . . . 1 . . . . . . . . . . . . . . . . . . . . 4 1 . 1 Misdirections 6 | . . . . . . . . . . . . . . . . . . . . . . . . . . . . . . 6 . Weapon Failures 11 | . . . . . . . 1 . 1 . . . . . . . . . . . . . . . . . 1 . 1 7 . Overload Shots 5 | . . . . . . . . . . . . . . . . . . 3 . . . . . . . 1 1 . . . . Overflow Damage 3397 | . . . . . 104 501 . . 756 71 . 315 41 236 127 . 553 155 222 . . . 11 . . . . 1 . 304 . Projectiles 838 | . . . . . . . . . 379 . . 253 41 . 68 . . . . . . . . . . . . 1 . 96 . Explosions 391 | . . . . . 6 8 . . 120 . . 62 . . 59 . . . . . . . 11 . . . . . . 125 . Melee 2168 | . . . . . 98 493 . . 257 71 . . . 236 . . 553 155 222 . . . . . . . . . . 83 . Knockbacks 71 | . . . . . 1 2 . . 12 3 . 15 4 3 . . 6 1 1 . . . . 1 . . . . . 22 . Impact 20 | . . . . . 1 2 . . 3 2 . . . 3 . . 5 1 1 . . . . 1 . . . . . 1 . Kinetic 47 | . . . . . . . . . 9 1 . 15 3 . . . . . . . . . . . . . . . . 19 . Secondary 4 | . . . . . . . . . . . . . 1 . . . 1 . . . . . . . . . . . . 2 . Self-Inflicted Damage 601 | . . . . . . 17 . . 24 . . 8 . . . . . 12 . . . . 19 . . . . . . 521 . Shots 46 | . . . . . . 2 . . 1 . . 1 . . . . . 1 . . . . 1 . . . . . . 40 . Rammed 7 | . . . . . 1 . 1 . . . . . . . 1 . . 1 . . . . . 1 . . . . . 2 . Targets Rammed 11 | . . 1 . . 3 . 1 . . . . . . . 1 . . 1 . . . . . 1 . . . . . 3 . Kicked 1 | . . 1 . . . . . . . . . . . . . . . . . . . . . . . . . . . . . Crushed 3 | . . . . . 2 . . . . . . . . . . . . . . . . . . . . . . . . 1 . Highest Temperature 544 | 126 144 270 . 312 319 358 275 248 266 . . 496 6 . 9 . . 176 2 20 68 . 351 150 301 308 544 504 179 434 . Average Temperature 89 | 50 35 98 . 126 91 126 88 84 61 . . 120 6 . 9 . . 48 2 12 25 . 145 22 113 99 151 140 11 83 . Received Heat Transfer 7142 | . 111 135 . 144 288 477 216 438 267 . . 710 62 26 222 4 . 21 25 49 60 . 741 . 8 124 1373 60 . 1563 18 Effects 30 | . . . . 1 . 1 . . . . . 3 . . . . . . . . . . 1 . 1 . 4 15 . 4 . Shutdowns 9 | . . . . . . 1 . . . . . 2 . . . . . . . . . . 1 . . . . 2 . 3 . Energy Bleed 3 | . . . . . . . . . . . . . . . . . . . . . . . . . . . . 3 . . . Interference 10 | . . . . . . . . . . . . 1 . . . . . . . . . . . . 1 . 2 6 . . . Matter Decay 2 | . . . . 1 . . . . . . . . . . . . . . . . . . . . . . 1 . . . . Short Circuit 1 | . . . . . . . . . . . . . . . . . . . . . . . . . . . . . . 1 . Damage (minor) 2 | . . . . . . . . . . . . . . . . . . . . . . . . . . . 1 1 . . . Damage (major) 3 | . . . . . . . . . . . . . . . . . . . . . . . . . . . . 3 . . . Siege Activations 7 | . . . . . . . . . 1 . . . 1 . . 1 . . . . . . 1 . . . . . 1 2 . Total Turns 138 | . . . . . . . . . 2 . . . 22 . . 10 . . . . . . 33 . . . . . 33 38 . Longest Duration 33 | . . . . . . . . . 2 . . . 22 . . 10 . . . . . . 33 . . . . . 33 23 . Martial Activations . | . . . . . . . . . . . . . . . . . . . . . . . . . . . . . . . . Shielding Activations . | . . . . . . . . . . . . . . . . . . . . . . . . . . . . . . . . Robots Disrupted 1 | . . . . . . . . . . . . . . . . . . . . . . . . . . . . . . 1 . Combat Hostiles 1 | . . . . . . . . . . . . . . . . . . . . . . . . . . . . . . 1 . Robots Corrupted 44 | . . . . . 1 5 . . 4 1 . . 1 3 . . 7 1 3 . . . 3 . . . . 2 . 13 . Combat Hostiles 19 | . . . . . . 1 . . . 1 . . 1 . . . . . . . . . 2 . . . . 2 . 12 . Parts Fried 93 | . . . . . 5 14 . . 7 2 . . . 6 . . 18 6 3 . . . 5 . . . . 3 . 24 . Impact Corruptions 76 | . . . . . 4 13 . . 10 3 . . 1 9 . . 20 6 7 . . . . . . . . . . 3 . Robots Melted 9 | . . . . . . 1 . 2 . . . . . . 2 . . . . . . . 1 . . . . . . 3 . Combat Hostiles 8 | . . . . . . 1 . 2 . . . . . . 2 . . . . . . . 1 . . . . . . 2 . Parts Melted 68 | . . . . . 6 3 15 18 . . . 1 . . 8 . . . . . . . 5 . 1 . 5 . . 6 . Heat Transferred 28018 | 625 790 195 . . 1776 2701 3515 3293 350 . . 961 . . 1680 . . 285 148 148 481 148 2479 185 592 555 1703 296 148 4964 . Parts Sabotaged . | . . . . . . . . . . . . . . . . . . . . . . . . . . . . . . . . Parts Stolen . | . . . . . . . . . . . . . . . . . . . . . . . . . . . . . . . . Parts Stripped . | . . . . . . . . . . . . . . . . . . . . . . . . . . . . . . . . Power Chain Reactions 8 | . . . . . . . . . . . . . . . . . . . . . . . . . . . . . . 8 . Alert | -11 -10 -10 -10 -9 -8 -8 -7 -7 -7 -6 -6 -6 -6 -6 -6 -6 -6 -6 -5 -5 -5 -5 -4 -4 -4 -4 -4 -3 -3 -2 -2 ------- Run | Yrd Mat Min Exi Min Mat Sto Fac Gar Fac Fac Was Fac Gar Fac Ext Cet Arc Hub Fac Upp Upp Zhi Pro Fac Upp Upp War Pro Res Res Gar Maximum Alert Level 5 | . . . . . 1 1 . 4 3 2 . 4 4 2 3 2 1 1 . . . . . . . . . . . 5 4 Low Security (%) 56 | 100 100 100 . 100 77 87 100 25 . . 100 15 . . 53 . 64 90 100 . . . . 100 . . . . 100 23 . Level 1 8 | . . . . . 22 12 . 1 . 79 . . . 53 3 9 35 9 . . . . . . . . . . . 8 . Level 2 12 | . . . . . . . . 28 37 20 . 6 . 46 33 90 . . . . . . . . . . . . . 12 . Level 3 15 | . . . . . . . . 32 62 . . 53 51 . 9 . . . . . . . . . . . . . . 24 . Level 4 6 | . . . . . . . . 11 . . . 24 48 . . . . . . . . . . . . . . . . 25 100 Level 5 . | . . . . . . . . . . . . . . . . . . . . . . . . . . . . . . 4 . High Security . | . . . . . . . . . . . . . . . . . . . . . . . . . . . . . . . . Max Security . | . . . . . . . . . . . . . . . . . . . . . . . . . . . . . . . . Peak Influence 1818 | 5 84 45 . 50 310 273 128 1320 892 434 107 1282 1111 589 878 547 356 382 182 . . . . 48 . . . . 70 1818 1375 Initial 1363 | . . . . . . 120 37 58 693 434 107 . 896 583 156 488 190 . 182 . . . . 48 . . . . . 25 1363 Average 328 | 1 23 6 . 3 96 74 32 610 714 345 13 790 1038 383 282 477 136 39 76 . . . . 5 . . . . 7 731 1368 Influence Increases 14974 | 15 454 120 . 67 903 651 647 1292 1119 63 9 1982 235 343 1407 317 266 607 118 60 375 5 391 23 150 50 265 160 145 2723 12 Destroy 0b10 Robot/C 7520 | . 260 80 . 40 440 340 340 420 520 40 . 760 100 120 760 160 80 160 60 60 340 . 340 . 120 40 220 140 80 1500 . Destroy 0b10 Robot/NC 790 | 15 20 5 . . 85 85 25 . 90 10 . 45 . 50 65 10 45 55 15 . . 5 5 5 . . . . 5 150 . Destroy Leader 1466 | . 56 20 . 10 138 100 116 30 138 10 . 196 10 52 96 . . 66 . . 20 . 40 2 30 10 . 20 20 286 . Allied During Kill 1472 | . . . . . . 61 31 2 16 . . 495 . . 399 132 125 200 . . . . 6 . . . . . . 5 . Successful Hack 271 | . 31 . . . 27 3 25 12 . . . 6 14 36 43 . . 6 4 . . . . . . . . . 26 26 12 Select Force Hacks 120 | . 30 . . . 30 . 30 . . . . 30 . . . . . . . . . . . . . . . . . . . Disable Machine 810 | . . . . . 15 45 15 . 210 . . 330 . 45 . . 15 75 . . . . . . . . . . . 60 . Anti-Garrison Action 750 | . . . . . . . . 650 . . . . 100 . . . . . . . . . . . . . . . . . . Destroy Structure 965 | . 12 . . 17 93 2 5 88 130 3 9 120 11 40 14 15 1 45 24 . . . . 16 . . . . 14 306 . Partial Spotted 45 | . . 15 . . . . . . . . . . . . 15 . . . . . . . . . . . . . . 15 . Lose Combat Pursuer 765 | . 45 . . . 75 15 60 90 15 . . . . . 15 . . . 15 . 15 . . . . . 45 . . 375 . Influence Decreases 13609 | 15 454 120 . 67 616 854 647 56 1553 642 316 702 404 1134 853 716 741 235 466 56 368 40 314 100 132 68 265 160 99 951 465 Entered New Map 4016 | . . . . . . 167 47 26 627 452 200 . 384 528 164 386 285 . 190 10 6 35 . 29 . 4 . . . 21 455 Time Decay 7389 | 15 444 120 . 63 517 477 460 . 666 190 61 552 . 446 489 270 456 125 276 46 352 5 242 71 132 64 161 140 89 460 . Lost Part 818 | . 10 . . . 17 40 . 10 40 . 55 . 20 . . . . 10 . . 10 . 32 . . . 104 20 10 430 10 Lost Ally 864 | . . . . 4 10 20 140 20 70 . . 150 . 10 200 60 . 100 . . . . 40 . . . . . . 40 . Purge Threat 522 | . . . . . 72 150 . . 150 . . . . 150 . . . . . . . . . . . . . . . . . Squads Dispatched 100 | . 4 . . . 7 2 11 . 10 . . 11 . 3 6 . . 4 2 . 1 . 1 3 . . . . 7 28 . Investigation 24 | . 3 . . . 2 . 2 . . . . 2 . . 3 . . . 1 . . . . 2 . . . . 7 2 . Extermination 28 | . . . . . . . 6 . 4 . . 3 . 2 . . . 1 1 . . . . 1 . . . . . 10 . Reinforcement 25 | . 1 . . . 2 2 3 . 5 . . 3 . 1 1 . . 3 . . . . . . . . . . . 4 . Assault 16 | . . . . . . . . . 1 . . 3 . . 2 . . . . . 1 . 1 . . . . . . 8 . Garrison 7 | . . . . . 3 . . . . . . . . . . . . . . . . . . . . . . . . 4 . Intercept . | . . . . . . . . . . . . . . . . . . . . . . . . . . . . . . . . Searches Triggered . | . . . . . . . . . . . . . . . . . . . . . . . . . . . . . . . . Construction Impeded 9 | . . . . . . 1 . . 2 . . 2 . . 1 . . 1 . . . . . . . . . . . 2 . Haulers Reinforced 2 | . . . . . . . . . 1 . . . . . . . . . . . . . . . . . . . . 1 . Active Scanning Responses . | . . . . . . . . . . . . . . . . . . . . . . . . . . . . . . . . Cargo Convoy Interrupts 1 | . . . . . . . . . 1 . . . . . . . . . . . . . . . . . . . . . . Stealth | -11 -10 -10 -10 -9 -8 -8 -7 -7 -7 -6 -6 -6 -6 -6 -6 -6 -6 -6 -5 -5 -5 -5 -4 -4 -4 -4 -4 -3 -3 -2 -2 --------- Run | Yrd Mat Min Exi Min Mat Sto Fac Gar Fac Fac Was Fac Gar Fac Ext Cet Arc Hub Fac Upp Upp Zhi Pro Fac Upp Upp War Pro Res Res Gar Distress Signals 34 | . 1 . . . 3 1 1 . 1 . . . . 2 1 2 . 3 . . . . . . . . 1 . 6 12 . Communications Jammed . | . . . . . . . . . . . . . . . . . . . . . . . . . . . . . . . . Distress Signals . | . . . . . . . . . . . . . . . . . . . . . . . . . . . . . . . . Times Spotted 624 | . 24 4 . 2 37 23 20 21 42 2 6 31 5 13 40 9 7 24 6 3 19 . 21 1 6 6 67 7 14 160 4 Peak Tracking Total 24 | . 4 2 . 2 5 5 6 11 11 2 3 6 3 2 7 5 1 10 3 3 9 . 5 1 2 4 11 3 5 24 2 Tactical Retreats 28 | . 3 . . . 3 1 2 2 1 . . . . . 1 . . . 1 . 1 . . . . . 2 . . 11 . Traps | -11 -10 -10 -10 -9 -8 -8 -7 -7 -7 -6 -6 -6 -6 -6 -6 -6 -6 -6 -5 -5 -5 -5 -4 -4 -4 -4 -4 -3 -3 -2 -2 ------- Run | Yrd Mat Min Exi Min Mat Sto Fac Gar Fac Fac Was Fac Gar Fac Ext Cet Arc Hub Fac Upp Upp Zhi Pro Fac Upp Upp War Pro Res Res Gar Traps Triggered 29 | . 3 . . . 2 4 1 5 3 1 . 1 . . 2 . . 1 1 . . . . . . . . . 1 1 3 Indirectly 4 | . . . . . . 4 . . . . . . . . . . . . . . . . . . . . . . . . . Trap Hack Attempts . | . . . . . . . . . . . . . . . . . . . . . . . . . . . . . . . . Triggered . | . . . . . . . . . . . . . . . . . . . . . . . . . . . . . . . . Disarmed . | . . . . . . . . . . . . . . . . . . . . . . . . . . . . . . . . Reprogrammed . | . . . . . . . . . . . . . . . . . . . . . . . . . . . . . . . . Reused . | . . . . . . . . . . . . . . . . . . . . . . . . . . . . . . . . Traps Extracted . | . . . . . . . . . . . . . . . . . . . . . . . . . . . . . . . . Installed . | . . . . . . . . . . . . . . . . . . . . . . . . . . . . . . . . Triggered . | . . . . . . . . . . . . . . . . . . . . . . . . . . . . . . . . Machines | -11 -10 -10 -10 -9 -8 -8 -7 -7 -7 -6 -6 -6 -6 -6 -6 -6 -6 -6 -5 -5 -5 -5 -4 -4 -4 -4 -4 -3 -3 -2 -2 ---------- Run | Yrd Mat Min Exi Min Mat Sto Fac Gar Fac Fac Was Fac Gar Fac Ext Cet Arc Hub Fac Upp Upp Zhi Pro Fac Upp Upp War Pro Res Res Gar Machines Disabled 64 | . . . . . 1 3 1 2 14 . . 22 1 3 4 . 1 5 . . 1 . . . . 1 1 . . 4 . Max in Single Turn 16 | . . . . . 1 1 1 2 6 . . 16 1 2 2 . 1 1 . . 1 . . . . 1 1 . . 1 . Garrison Access 4 | . . . . . . 1 . . . . . . . . . . . 1 . . . . . . . . . . 1 1 . Garrison Relay 1 | . . . . . . . . . . . . . 1 . . . . . . . . . . . . . . . . . . Phase Generator 1 | . . . . . . . . 1 . . . . . . . . . . . . . . . . . . . . . . . Machines Repaired . | . . . . . . . . . . . . . . . . . . . . . . . . . . . . . . . . Machines Dismantled . | . . . . . . . . . . . . . . . . . . . . . . . . . . . . . . . . Machines Sabotaged . | . . . . . . . . . . . . . . . . . . . . . . . . . . . . . . . . Overloaded Fab Kills . | . . . . . . . . . . . . . . . . . . . . . . . . . . . . . . . . Hacking | -11 -10 -10 -10 -9 -8 -8 -7 -7 -7 -6 -6 -6 -6 -6 -6 -6 -6 -6 -5 -5 -5 -5 -4 -4 -4 -4 -4 -3 -3 -2 -2 --------- Run | Yrd Mat Min Exi Min Mat Sto Fac Gar Fac Fac Was Fac Gar Fac Ext Cet Arc Hub Fac Upp Upp Zhi Pro Fac Upp Upp War Pro Res Res Gar Machines Accessed 129 | . 8 1 2 . 11 5 14 2 7 1 . 9 1 5 13 2 . 3 5 . . 7 . 3 . 1 12 . 6 10 1 Terminals 66 | . 7 . . . 8 4 5 2 3 . . 5 1 4 12 2 . 2 3 . . . . 2 . . . . 1 4 1 Fabricators 9 | . . . . . . . 2 . 4 . . . . 1 . . . . . . . . . . . . . . 2 . . Repair Stations 6 | . . . . . . . 1 . . 1 . . . . 1 . . . 1 . . . . 1 . . . . 1 . . Recycling Units 13 | . 1 . . . 2 . 3 . . . . 3 . . . . . . . . . . . . . . . . 1 3 . Scanalyzers 2 | . . . . . 1 . 1 . . . . . . . . . . . . . . . . . . . . . . . . Garrison Access 10 | . . . . . . 1 2 . . . . 1 . . . . . 1 1 . . . . . . . . . 1 3 . Total Hacks 296 | . 21 1 2 . 33 11 31 3 17 1 . 19 3 10 19 4 . 6 11 . . 46 . 4 . 1 25 . 11 15 2 Successful 189 | . 12 1 2 . 24 8 14 1 7 . . 8 1 4 13 . . 2 4 . . 46 . 1 . 1 25 . 8 6 1 Failed 106 | . 9 . . . 8 3 17 2 10 1 . 11 2 6 6 4 . 4 7 . . . . 3 . . . . 3 9 1 Catastrophic 14 | . 1 . . . . . . 1 1 . . 2 . 1 1 1 . 2 1 . . . . . . . . . . 3 . Database Lockouts 1 | . . . . . 1 . . . . . . . . . . . . . . . . . . . . . . . . . . Manual 97 | . 18 . 1 . 26 2 9 1 8 . . 9 . 3 3 1 . 4 8 . . . . 2 . . . . 1 . 1 Terminals 148 | . 19 . . . 28 10 10 3 7 . . 12 3 8 18 4 . 4 8 . . . . 3 . . . . 2 7 2 Fabricators 20 | . . . . . . . 4 . 10 . . . . 2 . . . . . . . . . . . . . . 4 . . Repair Stations 7 | . . . . . . . 2 . . 1 . . . . 1 . . . 1 . . . . 1 . . . . 1 . . Recycling Units 25 | . 2 . . . 3 . 7 . . . . 6 . . . . . . . . . . . . . . . . 3 4 . Scanalyzers 6 | . . . . . 2 . 4 . . . . . . . . . . . . . . . . . . . . . . . . Garrison Access 15 | . . . . . . 1 4 . . . . 1 . . . . . 2 2 . . . . . . . . . 1 4 . Terminal Hacks 118 | . 3 1 2 . 8 5 2 1 1 . . 2 1 3 11 . . 1 1 . . 46 . . . 1 25 . . 3 1 Record 53 | . . . 1 . . . . . . . . . . . . . . . . . . 34 . . . 1 17 . . . . Part Schematic 4 | . . . . . . . . . . . . . . . . . . . . . . 4 . . . . . . . . . Robot Analysis 5 | . . . . . 1 . . . . . . . . . . . . . . . . 4 . . . . . . . . . Prototype ID Bank 12 | . . . . . . . . . . . . . . . 1 . . . . . . 4 . . . . 7 . . . . Open Door 15 | . . 1 . . . 2 . . . . . . . 1 10 . . . . . . . . . . . 1 . . . . Branch Access Points 4 | . . . . . . . . . . . . 1 . 1 . . . . 1 . . . . . . . . . . 1 . Emergency Access Points 1 | . . . . . . . . . . . . . . . . . . . . . . . . . . . . . . . 1 Terminal Index 2 | . . . . . 1 . . . . . . 1 . . . . . . . . . . . . . . . . . . . Alert Level 1 | . . . . . . . . . . . . . . . . . . . . . . . . . . . . . . 1 . Unreport Threat 5 | . . . . . 2 1 . . 1 . . . . 1 . . . . . . . . . . . . . . . . . Locate Traps 5 | . . . . . 2 1 1 . . . . . . . . . . . . . . . . . . . . . . 1 . Maintenance Status 1 | . . . . . 1 . . . . . . . . . . . . . . . . . . . . . . . . . . Recall Investigation 1 | . 1 . . . . . . . . . . . . . . . . . . . . . . . . . . . . . . Hauler Manifests 2 | . . . . . 1 . 1 . . . . . . . . . . . . . . . . . . . . . . . . Zone Layout 4 | . 2 . . . . 1 . . . . . . . . . . . 1 . . . . . . . . . . . . . Garrison Registry 1 | . . . . . . . . . . . . . 1 . . . . . . . . . . . . . . . . . . Patrol Navigation 1 | . . . . . . . . 1 . . . . . . . . . . . . . . . . . . . . . . . Proto ID Catalog 1 | . . . 1 . . . . . . . . . . . . . . . . . . . . . . . . . . . . Fabricator Hacks 7 | . . . . . . . 1 . 2 . . . . . . . . . . . . . . . . . . . 4 . . Network Status 3 | . . . . . . . 1 . 1 . . . . . . . . . . . . . . . . . . . 1 . . Load Schematic 1 | . . . . . . . . . . . . . . . . . . . . . . . . . . . . . 1 . . Build 3 | . . . . . . . . . 1 . . . . . . . . . . . . . . . . . . . 2 . . Repair Station Hacks 2 | . . . . . . . 2 . . . . . . . . . . . . . . . . . . . . . . . . Scan Component 1 | . . . . . . . 1 . . . . . . . . . . . . . . . . . . . . . . . . Repair 1 | . . . . . . . 1 . . . . . . . . . . . . . . . . . . . . . . . . Recycling Unit Hacks 11 | . 1 . . . 2 . 2 . . . . 2 . . . . . . . . . . . . . . . . 2 2 . Report Inventory 10 | . 1 . . . 2 . 2 . . . . 2 . . . . . . . . . . . . . . . . 1 2 . Retrieve Components 1 | . . . . . . . . . . . . . . . . . . . . . . . . . . . . . 1 . . Scanalyzer 6 | . . . . . 2 . 4 . . . . . . . . . . . . . . . . . . . . . . . . Insert Component 3 | . . . . . 1 . 2 . . . . . . . . . . . . . . . . . . . . . . . . Analyze 3 | . . . . . 1 . 2 . . . . . . . . . . . . . . . . . . . . . . . . Garrison Access Hacks 6 | . . . . . . 1 1 . . . . 1 . . . . . 1 . . . . . . . . . . 1 1 . Unlock Access 3 | . . . . . . . 1 . . . . 1 . . . . . . . . . . . . . . . . . 1 . Seal Access 3 | . . . . . . 1 . . . . . . . . . . . 1 . . . . . . . . . . 1 . . Unauthorized Hacks 39 | . 8 . . . 12 2 2 . 4 . . 3 . 1 2 . . . 3 . . . . 1 . . . . 1 . . Terminals 28 | . 7 . . . 11 2 1 . 1 . . 2 . 1 1 . . . 2 . . . . . . . . . . . . Assimilate 2 | . . . . . 1 . . . . . . . . 1 . . . . . . . . . . . . . . . . . Botnet 14 | . 1 . . . 4 2 1 . 1 . . 2 . . 1 . . . 2 . . . . . . . . . . . . Operators 1 | . . . . . 1 . . . . . . . . . . . . . . . . . . . . . . . . . . Skim 11 | . 6 . . . 5 . . . . . . . . . . . . . . . . . . . . . . . . . . Fabricators 3 | . . . . . . . . . 3 . . . . . . . . . . . . . . . . . . . . . . Liberate 2 | . . . . . . . . . 2 . . . . . . . . . . . . . . . . . . . . . . Haulers 1 | . . . . . . . . . 1 . . . . . . . . . . . . . . . . . . . . . . Repair Stations 4 | . . . . . . . . . . . . . . . 1 . . . 1 . . . . 1 . . . . 1 . . Patch 4 | . . . . . . . . . . . . . . . 1 . . . 1 . . . . 1 . . . . 1 . . Recycling Units 4 | . 1 . . . 1 . 1 . . . . 1 . . . . . . . . . . . . . . . . . . . Tunnel 4 | . 1 . . . 1 . 1 . . . . 1 . . . . . . . . . . . . . . . . . . . Scanalyzers . | . . . . . . . . . . . . . . . . . . . . . . . . . . . . . . . . Garrison Access . | . . . . . . . . . . . . . . . . . . . . . . . . . . . . . . . . Data Cores Recovered 3 | . 1 . . . . . 1 . . . . 1 . . . . . . . . . . . . . . . . . . . Used . | . . . . . . . . . . . . . . . . . . . . . . . . . . . . . . . . Hacking Detections 77 | . 8 . . . 8 3 10 1 5 1 . 7 1 5 5 2 . 3 4 . . . . 2 . . . . 4 7 1 Full Trace Events 8 | . 1 . . . . . 1 . . . . 1 1 . 1 . . . . . . . . 1 . . . . 1 1 . Feedback Events . | . . . . . . . . . . . . . . . . . . . . . . . . . . . . . . . . Feedback Blocked . | . . . . . . . . . . . . . . . . . . . . . . . . . . . . . . . . Robot Schematics Acquired . | . . . . . . . . . . . . . . . . . . . . . . . . . . . . . . . . Robots Built 3 | . . . . . . . . . 3 . . . . . . . . . . . . . . . . . . . . . . Authchips . | . . . . . . . . . . . . . . . . . . . . . . . . . . . . . . . . Time 134 | . . . . . . . . . 134 . . . . . . . . . . . . . . . . . . . . . . Total Robot Build Rating 12 | . . . . . . . . . 12 . . . . . . . . . . . . . . . . . . . . . . Part Schematics Acquired 7 | . . . . . 1 . 2 . . . . . . . . . . . . . . 4 . . . . . . . . . Parts Built 2 | . . . . . . . . . . . . . . . . . . . . . . . . . . . . . 2 . . Authchips . | . . . . . . . . . . . . . . . . . . . . . . . . . . . . . . . . Time 162 | . . . . . . . . . . . . . . . . . . . . . . . . . . . . . 162 . . Total Part Build Rating 16 | . . . . . . . . . . . . . . . . . . . . . . . . . . . . . 16 . . Parts Repaired 1 | . . . . . . . 1 . . . . . . . . . . . . . . . . . . . . . . . . Time 38 | . . . . . . . 38 . . . . . . . . . . . . . . . . . . . . . . . . Parts Recycled . | . . . . . . . . . . . . . . . . . . . . . . . . . . . . . . . . Recycled Matter . | . . . . . . . . . . . . . . . . . . . . . . . . . . . . . . . . Retrieved Matter . | . . . . . . . . . . . . . . . . . . . . . . . . . . . . . . . . Retrieved Components 2 | . . . . . . . . . . . . . . . . . . . . . . . . . . . . . 2 . . Parts Scanalyzed 3 | . . . . . 1 . 2 . . . . . . . . . . . . . . . . . . . . . . . . Part Schematics Acquired 3 | . . . . . 1 . 2 . . . . . . . . . . . . . . . . . . . . . . . . Parts Damaged . | . . . . . . . . . . . . . . . . . . . . . . . . . . . . . . . . Bothacking | -11 -10 -10 -10 -9 -8 -8 -7 -7 -7 -6 -6 -6 -6 -6 -6 -6 -6 -6 -5 -5 -5 -5 -4 -4 -4 -4 -4 -3 -3 -2 -2 ------------ Run | Yrd Mat Min Exi Min Mat Sto Fac Gar Fac Fac Was Fac Gar Fac Ext Cet Arc Hub Fac Upp Upp Zhi Pro Fac Upp Upp War Pro Res Res Gar Used RIF Installer . | . . . . . . . . . . . . . . . . . . . . . . . . . . . . . . . . Robots Hacked . | . . . . . . . . . . . . . . . . . . . . . . . . . . . . . . . . Non-combat . | . . . . . . . . . . . . . . . . . . . . . . . . . . . . . . . . Combat . | . . . . . . . . . . . . . . . . . . . . . . . . . . . . . . . . Robot Hacks Applied . | . . . . . . . . . . . . . . . . . . . . . . . . . . . . . . . . Relay Couplers Released 11 | . . . . . . . . . . . . . 4 . . . . . . . . . . . . . . . . 7 . Machine Destruction 7 | . . . . . . . . . . . . . 4 . . . . . . . . . . . . . . . . 3 . Programmers 4 | . . . . . . . . . . . . . . . . . . . . . . . . . . . . . . 4 . Fabnet Peak Effective % . | . . . . . . . . . . . . . . . . . . . . . . . . . . . . . . . . Robots Rewired 10 | . . . . . . . . . . . . . . . 7 . . . . . 2 . 1 . . . . . . . . Allies Hacked 1 | . . . . . . . . . 1 . . . . . . . . . . . . . . . . . . . . . . Hacks Repelled . | . . . . . . . . . . . . . . . . . . . . . . . . . . . . . . . . Allies | -11 -10 -10 -10 -9 -8 -8 -7 -7 -7 -6 -6 -6 -6 -6 -6 -6 -6 -6 -5 -5 -5 -5 -4 -4 -4 -4 -4 -3 -3 -2 -2 -------- Run | Yrd Mat Min Exi Min Mat Sto Fac Gar Fac Fac Was Fac Gar Fac Ext Cet Arc Hub Fac Upp Upp Zhi Pro Fac Upp Upp War Pro Res Res Gar Total Allies 63 | . . . . . 1 10 . 1 3 . 18 . . 1 21 5 . . . . 2 . 1 . . . . . . . . Largest Group 18 | . . . . . 1 10 9 1 3 . 18 18 . 1 10 9 9 8 . . 2 2 2 . . . . . . . . Highest-Rated Group 732 | . . . . . 10 173 157 25 60 . 656 656 . 26 358 732 732 574 . . 59 59 59 . . . . . . . . Highest-Rated Ally 159 | . . . . . 10 29 29 25 20 . 50 50 . 26 159 159 151 96 . . 30 30 49 . . . . . . . . Initial Warlord ECA Mod 39 | . . . . . . . . . 3 2 2 2 2 3 3 3 3 3 2 2 2 2 1 1 1 1 1 . . . . Total Orders 14 | . . . . 1 . . 3 . 2 1 . . . . . . . 1 . . . . . . . 1 . 3 1 1 . STAY 1 | . . . . . . . . . . . . . . . . . . 1 . . . . . . . . . . . . . EXPLORE 12 | . . . . 1 . . 3 . 2 1 . . . . . . . . . . . . . . . 1 . 3 1 . . RETURN 1 | . . . . . . . . . . . . . . . . . . . . . . . . . . . . . . 1 . Ally Attacks 597 | . . . . . . 21 63 5 7 . . 155 . . 156 43 20 69 . . 1 . 15 . . . . . . 42 . Total Damage 13748 | . . . . . . 208 626 198 145 . . 3972 . . 3242 1080 644 2090 . . 76 . 457 . . . . . . 1010 . Kills 74 | . . . . . . 3 7 1 1 . . 18 . . 23 4 3 9 . . 1 . 1 . . . . . . 3 . Allies Corrupted 2 | . . . . . . . 1 . . . . . . . . . . 1 . . . . . . . . . . . . . Allies Melted 2 | . . . . . . . . 1 . . . . . . . . . . . . . . . . . . 1 . . . . Intel | -11 -10 -10 -10 -9 -8 -8 -7 -7 -7 -6 -6 -6 -6 -6 -6 -6 -6 -6 -5 -5 -5 -5 -4 -4 -4 -4 -4 -3 -3 -2 -2 ------- Run | Yrd Mat Min Exi Min Mat Sto Fac Gar Fac Fac Was Fac Gar Fac Ext Cet Arc Hub Fac Upp Upp Zhi Pro Fac Upp Upp War Pro Res Res Gar Active Infowar (turns) 15921 | 33 1454 367 . . . . . . . . . . . . . . . . 423 687 981 275 1338 599 1007 864 1636 1140 1527 3538 52 Optics 14067 | . . . . . . . . . . . . . . . . . . . 423 687 981 275 1338 599 1007 864 1636 1140 1527 3538 52 Sensors 522 | . . . . . . . . . . . . . . . . . . . . . . . 522 . . . . . . . . Terrain 1523 | . . . . . . . . . . . . . . . . . . . . . . . . . . . . . . 1523 . Seismic 5551 | 33 1454 367 . . . . . . . . . . . . . . . . . . . . . 12 1007 864 974 840 . . . Robot Analysis Total 5 | . . . . . 1 . . . . . . . . . . . . . . . . 4 . . . . . . . . . Derelict Logs Recovered 10 | . . 1 . 2 . . . . . . . . . . . . . . . 1 2 . 3 . 1 . . . . . . Drone Launches 16 | . . . . 1 . . 3 . 2 1 . . . . . . . . . . . . . . . 1 . 3 1 4 . Drone Recoveries 7 | . . . . . . . 1 . 1 . . . . . . . . . . . . . . . . 1 . 1 1 2 . Exploration | -11 -10 -10 -10 -9 -8 -8 -7 -7 -7 -6 -6 -6 -6 -6 -6 -6 -6 -6 -5 -5 -5 -5 -4 -4 -4 -4 -4 -3 -3 -2 -2 ------------- Run | Yrd Mat Min Exi Min Mat Sto Fac Gar Fac Fac Was Fac Gar Fac Ext Cet Arc Hub Fac Upp Upp Zhi Pro Fac Upp Upp War Pro Res Res Gar Turns Passed 40340 | 180 2193 783 410 869 2523 1527 2460 2552 2540 386 652 2108 476 1108 2075 581 1572 825 603 687 981 275 1338 599 1007 864 1636 1413 1527 3538 52 Spaces Moved 16086 | 87 754 351 213 357 901 542 828 891 855 136 312 1124 157 574 865 242 169 336 327 408 526 157 598 273 358 328 773 377 567 1596 104 Core 73 | 5 . . . . . . . . . . . . . . . . . . . . . . . . . . 1 . . 67 . Treads 13198 | . . . . . 756 542 828 891 855 136 312 1124 156 574 865 242 169 336 327 408 526 157 598 273 358 328 772 377 315 973 . Legs 2245 | 82 754 351 213 357 145 . . . . . . . 1 . . . . . . . . . . . . . . . 252 90 . Wheels . | . . . . . . . . . . . . . . . . . . . . . . . . . . . . . . . . Hover 211 | . . . . . . . . . . . . . . . . . . . . . . . . . . . . . . 206 5 Flight 359 | . . . . . . . . . . . . . . . . . . . . . . . . . . . . . . 260 99 Fastest Speed 30 | 50 120 190 190 190 145 225 250 245 245 243 160 160 160 165 165 160 160 160 160 160 160 160 160 160 240 160 160 160 118 30 30 Average Speed 193 | 115 178 190 190 190 219 233 250 246 245 243 164 160 163 165 205 177 160 160 160 160 160 160 166 160 240 225 186 270 192 156 31 Slowest Speed 2500 | 120 190 190 190 190 225 250 250 250 245 245 243 160 400 165 330 243 160 160 160 160 160 160 240 160 240 240 2500 320 360 360 60 Overloaded Moves . | . . . . . . . . . . . . . . . . . . . . . . . . . . . . . . . . Propulsion Burnouts . | . . . . . . . . . . . . . . . . . . . . . . . . . . . . . . . . Robots Hopped 12 | . . . . . . . . . . . . . . . . . . . . . . . . . . . . . . 12 . Potential Cave-ins 17 | . . . . 5 . . . . . . . . . . . . . . . . . . . . . . 10 . . 2 . Cave-ins Triggered . | . . . . . . . . . . . . . . . . . . . . . . . . . . . . . . . . Teleports 1 | . . . . . . . . . . . . . . . . . . . . . . . . . . . 1 . . . . Exploration Rate (%) 53 | 4 98 57 61 81 60 81 34 88 31 6 96 28 24 15 86 68 88 34 15 68 73 63 77 7 59 55 85 72 39 44 21 Regions Visited 31 Branch Regions 16 Pre-discovered Areas 18 | . 3 1 1 . 5 . 1 . . . . 1 . . . . . . . 1 . 3 1 . . . 1 . . . . Known Exits Taken 11 | . . 1 1 . 1 1 1 . . . . 1 . 1 . . . . 1 . . . . 1 . . . . 1 1 . Unknown Exits Taken 16 | 1 1 . . 1 . . . . 1 . . . . . 1 1 1 1 . 1 1 1 1 . 1 1 1 1 . . . Scrap Searched 19 | . . . . 2 . . . . . . . . . . . . . . . . 5 . 4 . 2 3 . 3 . . . Spaces Dug 264 | . 9 . . 8 9 . 4 15 23 . . 4 10 3 . . . 27 10 5 17 . 39 14 16 7 . 19 7 18 . Terrain Destroyed 916 | . 13 . . 30 105 . 4 91 130 3 9 83 11 46 28 . 1 52 11 7 38 . 50 15 27 20 5 20 15 102 . Melee 51 | . . . . . 5 . 4 7 4 . . . 1 3 . . . 7 10 1 . . . . . . . . 2 7 . Projectile 421 | . 13 . . 16 4 . . 1 40 3 9 25 9 1 13 . 1 28 1 6 38 . 50 15 27 20 5 20 13 63 . AOE 442 | . . . . 14 96 . . 83 86 . . 58 1 41 15 . . 17 . . . . . . . . . . . 31 . Terrain Rammed . | . . . . . . . . . . . . . . . . . . . . . . . . . . . . . . . . Walls Destroyed . | . . . . . . . . . . . . . . . . . . . . . . . . . . . . . . . . Machines Disabled . | . . . . . . . . . . . . . . . . . . . . . . . . . . . . . . . . Actions | -11 -10 -10 -10 -9 -8 -8 -7 -7 -7 -6 -6 -6 -6 -6 -6 -6 -6 -6 -5 -5 -5 -5 -4 -4 -4 -4 -4 -3 -3 -2 -2 --------- Run | Yrd Mat Min Exi Min Mat Sto Fac Gar Fac Fac Was Fac Gar Fac Ext Cet Arc Hub Fac Upp Upp Zhi Pro Fac Upp Upp War Pro Res Res Gar Total 23052 | 121 1479 436 218 473 1291 706 1113 1138 1154 170 398 1321 349 663 1087 375 1449 555 373 423 592 177 798 423 433 399 887 706 955 2266 124 Wait 4593 | . 609 50 . 60 214 67 191 141 183 8 30 81 156 38 118 95 1261 155 19 1 6 6 66 107 25 25 30 255 266 320 10 Move 16035 | 86 753 350 212 356 900 541 828 888 854 136 311 1124 156 573 864 241 168 335 326 407 525 156 597 272 357 327 772 376 566 1574 104 Hop 10 | . . . . . . . . . . . . . . . . . . . . . . . . . . . . . . 10 . Pick Up 239 | 7 14 1 1 1 26 9 11 7 6 2 11 17 2 6 16 9 1 4 4 1 3 1 8 7 1 2 8 6 21 26 . Fast Attach 160 | 6 5 2 . 1 13 10 4 4 5 1 8 3 4 . 2 4 2 . . . . 5 4 3 . 4 10 4 21 35 . Attach 109 | 1 1 1 . 1 5 4 4 1 7 3 2 4 2 . 4 . . . 3 . 1 . 6 2 . 1 9 11 6 30 . Detach 33 | . 1 1 . . 1 . . . 2 . 3 1 . . 3 . . . . . . . 1 1 . 1 2 2 8 6 . Swap 205 | . 30 6 3 12 20 9 13 13 14 5 1 3 4 5 5 2 1 4 . . 2 . 3 . 3 4 5 . 3 35 . Drop 271 | . 14 6 2 3 26 16 15 20 10 2 4 7 3 6 9 15 3 4 1 1 3 5 6 8 1 3 13 . 31 34 . Fire 1203 | 21 52 18 . 39 75 42 41 45 64 9 27 81 21 25 30 9 2 40 7 12 44 4 98 22 46 32 32 52 31 182 . Melee 111 | . . . . . 8 8 5 11 9 4 . . 1 10 . . 11 12 13 1 . . . . . . 6 . 2 10 . Ram 1 | . . . . . . . . . . . . . . . . . . . . . . . . . . . . . . 1 . Kick 1 | . . 1 . . . . . . . . . . . . . . . . . . . . . . . . . . . . . Crush 10 | . . . . . 3 . 1 . . . . . . . 1 . . 1 . . . . . 1 . . . . . 3 . Escape Stasis 22 | . . . . . . . . 8 . . . . . . 4 . . . . . . . . . . . . . . . 10 Rewire 49 | . . . . . . . . . . . 1 . . . 31 . . . . . 8 . 9 . . . . . . . . Trap . | . . . . . . . . . . . . . . . . . . . . . . . . . . . . . . . . Miscellaneous . | . . . . . . . . . . . . . . . . . . . . . . . . . . . . . . . . Route ------- -11/Scrapyard -10/Materials (discovered 6 exits: *Mat x3 / *Min x2 / Sub) -10/Mines (discovered 3 exits: *Mat x2 / *Exi) -10/Exiles (discovered 2 exits: *Min x2) -9/Mines -8/Materials (discovered 4 exits: *Fac x3 / *Sto) -8/Storage -7/Factory -7/Garrison (discovered 3 exits: *Fac x3) -7/Factory (discovered 2 exits: *Fac / [*Low]) -6/Factory -6/Waste -6/Factory (discovered 6 exits: *Fac / Low x2 / Ext x2 / Gar) -6/Garrison (discovered 3 exits: *Fac x3) -6/Factory (discovered 4 exits: *Low x2 / *Ext x2) -6/Extension (discovered 2 exits: *Fac / *Cet) -6/Cetus (discovered 2 exits: *Fac / [*Arc]) -6/Archives (discovered 3 exits: *Fac / *Hub x2) -6/Hub_04(d) -5/Factory (discovered 2 exits: *Upp x2) -5/Upper Caves -5/Upper Caves (discovered 2 exits: *Fac / *Zhi) -5/Zhirov -4/Proximity Caves -4/Factory (discovered 2 exits: *Res / *Upp) -4/Upper Caves -4/Upper Caves (discovered 2 exits: *Res / *War) -4/Warlord -3/Proximity Caves -3/Research (discovered 3 exits: *Res x2 / Arm) -2/Research (discovered 3 exits: Tes x2 / Gar) -2/Garrison History --------- Turn | Location | Event 7 | -11/Scrapyard | Discovered new exit (range 15) 181 | -11/Scrapyard | Entered Materials 313 | -10/Materials | Build established: Mutant 342 | -10/Materials | Discovered new exit (range 14) 342 | -10/Materials | Discovered new exit (range 18) 1058 | -10/Materials | Discovered new exit (range 13) 1107 | -10/Materials | Discovered new exit (range 15) 1214 | -10/Materials | Discovered new exit (range 9) 1867 | -10/Materials | Learned location of Subcaves (-10) 1944 | -10/Materials | Identified exit to Subcaves 1944 | -10/Materials | Learned location of 1 exit from Materials 2111 | -10/Materials | Learned location of 2 exits from Mines 2374 | -10/Materials | Entered Mines 2375 | -10/Mines | Identified exit to Exiles 2375 | -10/Mines | Identified exit to Materials 2536 | -10/Mines | Found the Drone Emporium 2549 | -10/Mines | Found Prototype Device 2549 | -10/Mines | Identified Thief Drone Bay 2752 | -10/Mines | Discovered exit to Materials (range 8) 3066 | -10/Mines | A weapon hastily lodged in a ceiling crevice suddenly fell to the ground 3146 | -10/Mines | Build established: Scavenger-Mutant 3149 | -10/Mines | Deemed a non-threat by the Exiles lab entrance 3157 | -10/Mines | Entered Exiles 3158 | -10/Exiles | Identified exit to Mines 3209 | -10/Exiles | Met 8R-AWN 3235 | -10/Exiles | Met EX-HEX 3292 | -10/Exiles | Met EX-BIN 3315 | -10/Exiles | Aligned with FarCom system 3317 | -10/Exiles | Given EX-Vault access code 3365 | -10/Exiles | Opened EX-Vault 3383 | -10/Exiles | Found YOLO Cannon 3420 | -10/Exiles | Warned to stay clear of 0b10 Research branches 3448 | -10/Exiles | Exiles lab attacked by MAIN.C 3493 | -10/Exiles | Learned location of Zion (-7) 3567 | -10/Exiles | Left Exiles lab with YOLO Cannon 3567 | -10/Exiles | Entered Mines 3580 | -9/Mines | Core integrity fell below 50% 3930 | -9/Mines | Learned 4 Materials zone layouts 4220 | -9/Mines | Learned 2 Materials zone layouts 4265 | -9/Mines | Assembled infested the area 4415 | -9/Mines | Discovered new exit (range 9) 4436 | -9/Mines | Entered Materials 4436 | -8/Materials | Evolved 4 slots: Propulsion x1, Utility x2, Weapon x1 4437 | -8/Materials | Identified exit to Factory 4438 | -8/Materials | Identified exit to Storage 4814 | -8/Materials | Build established: Scavenger-Skirmisher 5208 | -8/Materials | Build established: Hacker-Skirmisher 5217 | -8/Materials | Central database locked down 5809 | -8/Materials | Garrison activated, responded to threat 6538 | -8/Materials | Learned location of Recycling (-8) 6575 | -8/Materials | Learned location of Extension (-6) 6604 | -8/Materials | Learned location of 1 exit from Recycling 6623 | -8/Materials | Learned location of Lower Caves (-6) 6632 | -8/Materials | Learned Storage stockpile data 6643 | -8/Materials | Build established: Skirmisher 6649 | -8/Materials | Learned 4 Recycling zone layouts 6710 | -8/Materials | Learned Factory stockpile data 6959 | -8/Materials | Entered Storage 7305 | -8/Storage | Lost 4 parts (3n1u) 8232 | -8/Storage | Assisted by bots powering up and referring to "LRC-V3" 8285 | -8/Storage | Met 01-MTF 8369 | -8/Storage | Discovered exit to Factory (range 15) 8486 | -8/Storage | Entered Factory 8486 | -7/Factory | Accompanied by 10 allies (01-MTF) 8486 | -7/Factory | Evolved 2 slots: Utility x1, Weapon x1 8489 | -7/Factory | 01-MTF left 8565 | -7/Factory | Build established: Commander-Skirmisher 9021 | -7/Factory | Lost 5 allies 9268 | -7/Factory | Build established: Skirmisher 9751 | -7/Factory | Repaired Imp. Light Armor Plating 10946 | -7/Factory | Identified exit to Garrison 10946 | -7/Factory | Entered Garrison 11166 | -7/Garrison | Triggered checkpoint 11541 | -7/Garrison | Triggered checkpoint 11582 | -7/Garrison | Triggered checkpoint 11650 | -7/Garrison | Destroyed 8 combat bots 11724 | -7/Garrison | Discovered new exit (range 11) 11870 | -7/Garrison | Phase Generator disabled 11935 | -7/Garrison | Triggered checkpoint 12240 | -7/Garrison | Discovered new exit (range 9) 12294 | -7/Garrison | Build established: Tank 12340 | -7/Garrison | Rescued a captive Derelict 12410 | -7/Garrison | Triggered checkpoint 12517 | -7/Garrison | Discovered new exit (range 14) 12912 | -7/Garrison | Build established: Scavenger-Tank 13153 | -7/Garrison | Attempted to access garrison exit controls, blocked by remote lockdown 13336 | -7/Garrison | Attempted to access garrison exit controls, blocked by remote lockdown 13498 | -7/Garrison | Entered Factory 13810 | -7/Factory | Discovered new exit (range 9) 13981 | -7/Factory | Fabricated B-48 Gladiator? 14112 | -7/Factory | Cargo convoy interrupted 14161 | -7/Factory | Destroyed 8 combat bots 14268 | -7/Factory | Build established: Tank 15068 | -7/Factory | Discovered new exit (range 27) 15498 | -7/Factory | First assault squad dispatched 16038 | -7/Factory | Entered another Factory area 16038 | -6/Factory | Evolved 2 slots: Propulsion x1, Utility x1 16379 | -6/Factory | Build established: Hacker-Tank 16424 | -6/Factory | Sucked down chute 16424 | -6/Factory | Entered Waste 16424 | -6/Waste | Met up with 1 ally sucked down the chute earlier 16440 | -6/Waste | Spotted C-40 Crusher 16442 | -6/Waste | Spotted C-40 Crusher 16460 | -6/Waste | Crushed by Compactor (0 parts destroyed, 1 dropped) 16463 | -6/Waste | Crushed by Compactor (1 part destroyed) 16465 | -6/Waste | Destroyed C-40 Crusher 16471 | -6/Waste | Crushed by Compactor (1 part destroyed) 16472 | -6/Waste | Destroyed C-40 Crusher 16490 | -6/Waste | Spotted C-40 Crusher 16505 | -6/Waste | Spotted C-40 Crusher 16515 | -6/Waste | Destroyed C-40 Crusher 16525 | -6/Waste | Spotted C-40 Crusher 16538 | -6/Waste | Crushed by Compactor (0 parts destroyed, 1 dropped) 16544 | -6/Waste | Crushed by Compactor (1 part destroyed) 16546 | -6/Waste | Spotted C-40 Crusher 16547 | -6/Waste | Crushed by Compactor (1 part destroyed) 16550 | -6/Waste | Crushed by Compactor (0 parts destroyed, 1 dropped) 16553 | -6/Waste | Crushed by Compactor (1 part destroyed) 16555 | -6/Waste | Destroyed C-40 Crusher 16565 | -6/Waste | Destroyed C-40 Crusher 16569 | -6/Waste | Crushed by Compactor (1 part destroyed) 16570 | -6/Waste | Destroyed C-40 Crusher 16579 | -6/Waste | Found Damper Plating 16600 | -6/Waste | Lost 5 parts (2n2u1w) 16626 | -6/Waste | Warlord forces began an assault 16981 | -6/Waste | Discovered new exit (range 16) 17076 | -6/Waste | Entered Factory 17076 | -6/Factory | Accompanied by 18 allies 17452 | -6/Factory | Build established: Tank 17462 | -6/Factory | Identified exit to Lower Caves 17462 | -6/Factory | Identified exit to Extension 17520 | -6/Factory | Lost 9 allies 17525 | -6/Factory | Spotted B-75 Beast 17677 | -6/Factory | P-60 Hacker assimilated allied 1B-MRL(d) 18126 | -6/Factory | First assault squad dispatched 18704 | -6/Factory | Lost 3 allies 19131 | -6/Factory | Discovered new exit (range 6) 19184 | -6/Factory | Identified exit to Garrison 19184 | -6/Factory | Entered Garrison 19202 | -6/Garrison | Triggered checkpoint 19258 | -6/Garrison | Discovered new exit (range 50) 19258 | -6/Garrison | Discovered new exit (range 50) 19258 | -6/Garrison | Discovered new exit (range 71) 19413 | -6/Garrison | Triggered checkpoint 19660 | -6/Garrison | Entered Factory 20768 | -6/Factory | Entered Extension 21031 | -6/Extension | Rescued a captive Derelict 21165 | -6/Extension | Rescued a captive Derelict 21406 | -6/Extension | Rescued a captive Derelict 21451 | -6/Extension | Rescued a captive Derelict 21452 | -6/Extension | Rescued a captive Derelict 21484 | -6/Extension | Rescued a captive Derelict 21874 | -6/Extension | Spotted B-75 Beast 21896 | -6/Extension | Destroyed B-75 Beast 21925 | -6/Extension | Spotted B-75 Beast 21952 | -6/Extension | Destroyed B-75 Beast 21974 | -6/Extension | Lost 8 allies 22109 | -6/Extension | Rescued A7 22168 | -6/Extension | First assault squad dispatched 22240 | -6/Extension | Build established: Scavenger-Tank 22316 | -6/Extension | Rescued a captive Derelict 22317 | -6/Extension | Rescued a captive Derelict 22380 | -6/Extension | Rescued a captive Derelict 22390 | -6/Extension | Rescued a captive Derelict 22685 | -6/Extension | Rescued a captive Derelict 22713 | -6/Extension | Rescued a captive Derelict 22716 | -6/Extension | Rescued a captive Derelict 22807 | -6/Extension | Discovered new exit (range 10) 22810 | -6/Extension | Discovered new exit (range 6) 22843 | -6/Extension | Entered Cetus 22843 | -6/Cetus | Accompanied by 7 allies (A7) 22848 | -6/Cetus | Acquired a Cetus Manufacturing Module code from A7 22874 | -6/Cetus | Spotted Cetus Guard 22874 | -6/Cetus | Spotted Cetus Guard 22876 | -6/Cetus | Allies destroyed Cetus Guard 22877 | -6/Cetus | Spotted Cetus Guard 22878 | -6/Cetus | Spotted Cetus Guard 22879 | -6/Cetus | Destroyed Cetus Guard 22900 | -6/Cetus | Destroyed Cetus Guard 22904 | -6/Cetus | Destroyed Cetus Guard 22932 | -6/Cetus | Lost 3 allies 23049 | -6/Cetus | Started Cetus Manufacturing Module 23074 | -6/Cetus | Manufactured an Enhanced Grunt 23099 | -6/Cetus | Manufactured an Enhanced Grunt 23124 | -6/Cetus | Manufactured an Enhanced Grunt 23149 | -6/Cetus | Manufactured an Enhanced Grunt 23174 | -6/Cetus | Manufactured an Enhanced Grunt 23201 | -6/Cetus | Discovered new exit (range 15) 23233 | -6/Cetus | Spotted Cetus Guard 23233 | -6/Cetus | Spotted Cetus Guard 23237 | -6/Cetus | Destroyed Cetus Guard 23238 | -6/Cetus | Spotted Cetus Guard 23238 | -6/Cetus | Spotted Cetus Guard 23241 | -6/Cetus | Allies destroyed Cetus Guard 23241 | -6/Cetus | Destroyed Cetus Guard 23246 | -6/Cetus | Allies destroyed Cetus Guard 23256 | -6/Cetus | Discovered new exit (range 15) 23264 | -6/Cetus | Met Revision 17 23424 | -6/Cetus | Entered Archives 23424 | -6/Archives | Accompanied by 9 allies (A7) 23531 | -6/Archives | Discovered new exit (range 15) 23576 | -6/Archives | Discovered new exit (range 16) 23611 | -6/Archives | Discovered new exit (range 16) 24996 | -6/Archives | Entered Hub_04(d) 24996 | -6/Hub_04(d) | Accompanied by 8 allies 25734 | -6/Hub_04(d) | Lost 3 allies 25761 | -6/Hub_04(d) | Discovered new exit (range 16) 25771 | -6/Hub_04(d) | Spotted B-75 Beast 25821 | -6/Hub_04(d) | Entered Factory 25821 | -5/Factory | Evolved 2 slots: Power x1, Utility x1 25849 | -5/Factory | Lost 3 allies 26078 | -5/Factory | Identified exit to Upper Caves 26424 | -5/Factory | Entered Upper Caves 26430 | -5/Upper Caves | Met a Warlord Commander 26431 | -5/Upper Caves | Learned location of Warlord (-4) 26432 | -5/Upper Caves | Warlord Commander delivered Encrypted Comm Array 26436 | -5/Upper Caves | Found Encrypted Comm Array 26680 | -5/Upper Caves | Spotted B-75 Beast 26962 | -5/Upper Caves | Learned 8 Factory zone layouts 27035 | -5/Upper Caves | Attracted the attention of an 0b10 checkpoint 27089 | -5/Upper Caves | Discovered new exit (range 7) 27111 | -5/Upper Caves | Entered another Upper Caves area 27132 | -5/Upper Caves | Discovered new exit (range 18) 27470 | -5/Upper Caves | Learned Factory stockpile data 27696 | -5/Upper Caves | Attracted the attention of an 0b10 outpost 27770 | -5/Upper Caves | Destroyed 8 combat bots 27855 | -5/Upper Caves | Attacked by a delusional Derelict stockpiling parts 28024 | -5/Upper Caves | Learned Factory terminal intel 28073 | -5/Upper Caves | Discovered new exit (range 9) 28092 | -5/Upper Caves | Entered Zhirov 28092 | -5/Zhirov | Accompanied by 2 allies 28092 | -5/Zhirov | Discovered new exit (range 3) 28121 | -5/Zhirov | Met Zhirov 28169 | -5/Zhirov | Learned location of Quarantine (-3) 28169 | -5/Zhirov | Learned location of Testing (-2) 28169 | -5/Zhirov | Learned location of Command (-1) 28184 | -5/Zhirov | Zhirov requested help retrieving the SGEMP Prototype 28208 | -5/Zhirov | Found Alien Artifact 28208 | -5/Zhirov | Identified Integrated Reactor 28208 | -5/Zhirov | Installed Integrated Reactor, increased core energy generation (+10) 28236 | -5/Zhirov | Found Alien Artifact 28367 | -5/Zhirov | Entered Proximity Caves 28367 | -4/Proximity Caves | Accompanied by 2 allies 28969 | -4/Proximity Caves | Learned Research terminal intel 28991 | -4/Proximity Caves | Found DCF Scrap (14 items) 29050 | -4/Proximity Caves | Attracted the attention of an 0b10 outpost 29155 | -4/Proximity Caves | Learned 4 Research zone layouts 29316 | -4/Proximity Caves | Spotted B-86 Titan 29333 | -4/Proximity Caves | Destroyed B-86 Titan 29463 | -4/Proximity Caves | Build established: Scavenger-Mutant 29692 | -4/Proximity Caves | Discovered new exit (range 5) 29705 | -4/Proximity Caves | Entered Factory 29705 | -4/Factory | Evolved 2 slots: Utility x2 29706 | -4/Factory | Identified exit to Upper Caves 29708 | -4/Factory | Loaded intel: 26 terminal locations 29992 | -4/Factory | Build established: Scavenger-Gunner 30200 | -4/Factory | Discovered new exit (range 19) 30304 | -4/Factory | Entered Upper Caves 30492 | -4/Upper Caves | Attracted the attention of an 0b10 outpost 30613 | -4/Upper Caves | Build established: Scavenger-Tank 30813 | -4/Upper Caves | Learned location of 2 exits from Research 31252 | -4/Upper Caves | Discovered new exit (range 18) 31311 | -4/Upper Caves | Entered another Upper Caves area 31335 | -4/Upper Caves | Discovered new exit (range 22) 31506 | -4/Upper Caves | Spotted B-86 Titan 31523 | -4/Upper Caves | Destroyed B-86 Titan 31974 | -4/Upper Caves | Found Alien Artifact 31974 | -4/Upper Caves | Identified Dimensional Node Initializer 31974 | -4/Upper Caves | Initialized slip node 32099 | -4/Upper Caves | Ambushed by wild Derelicts 32166 | -4/Upper Caves | Discovered new exit (range 5) 32175 | -4/Upper Caves | Entered Warlord 32230 | -4/Warlord | System corruption cleaned by Quarantine Array 32356 | -4/Warlord | Found Prototype Reactor 32363 | -4/Warlord | Found Prototype Processor 32363 | -4/Warlord | Identified Exp. Targeting Computer 32739 | -4/Warlord | Met Warlord 32764 | -4/Warlord | Warlord's base attacked by MAIN.C 32958 | -4/Warlord | Learned 4 Research zone layouts 32961 | -4/Warlord | Learned Research fabricator intel 32961 | -4/Warlord | Learned Factory fabricator intel 33114 | -4/Warlord | Warlord forces counterattacked 33275 | -4/Warlord | Lost 9 allies 33308 | -4/Warlord | Discovered new exit (range 15) 33353 | -4/Warlord | Lost 10 allies 33393 | -4/Warlord | Spotted Striker 33396 | -4/Warlord | Spotted Striker 33439 | -4/Warlord | Warlord base infiltrated, sounded retreat 33449 | -4/Warlord | Lost 11 allies 33464 | -4/Warlord | Identified Transdimensional Reconstructor 33464 | -4/Warlord | Warped through subspace 33493 | -4/Warlord | Lost 7 parts (1p3u3w) 33669 | -4/Warlord | Found Corrupted Prototype Ballistic Cannon 33764 | -4/Warlord | Spotted B-90 Cyclops 33767 | -4/Warlord | Spotted B-86 Titan 33767 | -4/Warlord | Spotted Executioner 33790 | -4/Warlord | Core integrity fell below 50% 33811 | -4/Warlord | Core integrity fell below 20% 33811 | -4/Warlord | Entered Proximity Caves 33838 | -3/Proximity Caves | Lost 12 parts (1p3n4u4w) 33993 | -3/Proximity Caves | Identified Vortex Chain Reactor 34192 | -3/Proximity Caves | Found DCF Scrap (15 items) 34440 | -3/Proximity Caves | Build established: Derelict-Tank 34634 | -3/Proximity Caves | Attracted the attention of an 0b10 checkpoint 34653 | -3/Proximity Caves | Identified Hvy. Autocannon 34654 | -3/Proximity Caves | System corruption reached 10% 34977 | -3/Proximity Caves | Discovered new exit (range 43) 35224 | -3/Proximity Caves | Entered Research 35224 | -3/Research | Evolved 2 slots: Propulsion x2 35225 | -3/Research | Identified exit to Research 35226 | -3/Research | Identified exit to Armory 35227 | -3/Research | Loaded intel: 21 terminal locations 35228 | -3/Research | Loaded intel: 3 fabricator locations 35424 | -3/Research | Revision forces began assault on 0b10 35447 | -3/Research | Met up with Revision 17++ 35533 | -3/Research | Found Gamma Bomb Array 35537 | -3/Research | Found Gamma Bomb Array 35688 | -3/Research | Lost 5 allies 35804 | -3/Research | Fabricated Assault Drone Bay (x1) 35876 | -3/Research | Build established: Mutant 35924 | -3/Research | Research terminal network offline 35988 | -3/Research | Fabricated Centrium Leg (x1) 36516 | -3/Research | Build established: Tank 36520 | -3/Research | Spotted Executioner 36520 | -3/Research | Spotted Striker 36538 | -3/Research | Destroyed Striker 36548 | -3/Research | Lost 3 allies 36555 | -3/Research | Destroyed Executioner 36598 | -3/Research | Found Prototype Processor 36598 | -3/Research | Identified Exp. Core Analyzer 36605 | -3/Research | Spotted Striker 36623 | -3/Research | Destroyed Striker 36751 | -3/Research | Entered another Research area 36751 | -2/Research | Evolved 2 slots: Power x1, Utility x1 37068 | -2/Research | Build established: Assassin 37151 | -2/Research | Identified exit to Testing 37573 | -2/Research | Garrison activated, responded to threat 37608 | -2/Research | Destroyed 10 combat bots 37900 | -2/Research | Build established: Scavenger-Tank 38330 | -2/Research | Build established: Scavenger-Skirmisher 38389 | -2/Research | Destroyed 10 combat bots 38501 | -2/Research | First assault squad dispatched 38543 | -2/Research | Spotted B-90 Cyclops 38686 | -2/Research | Spotted B-90 Cyclops 38766 | -2/Research | Lost 9 parts (2p1n3u3w) 38772 | -2/Research | Allies destroyed B-90 Cyclops 38829 | -2/Research | Found Quantum Capacitor 38920 | -2/Research | System corruption reached 10% 39054 | -2/Research | Lost 4 parts (1p1n2u) 39299 | -2/Research | Spotted B-90 Cyclops 39379 | -2/Research | Lost 4 parts (1u3w) 39571 | -2/Research | Garrison activated, responded to threat 39635 | -2/Research | Lost 7 parts (1p1n2u3w) 39642 | -2/Research | Destroyed 14 combat bots 39928 | -2/Research | Build established: Scavenger-Mutant 40114 | -2/Research | Core integrity fell below 50% 40147 | -2/Research | Lost 11 parts (2p6n2u1w) 40182 | -2/Research | Spotted B-90 Cyclops 40258 | -2/Research | Core integrity fell below 20% 40289 | -2/Research | Identified exit to Garrison 40289 | -2/Research | Entered Garrison 40305 | -2/Garrison | Triggered checkpoint 40309 | -2/Garrison | Triggered checkpoint 40310 | -2/Garrison | Lost 3 parts (3u) 40326 | -2/Garrison | Spotted B-90 Cyclops 40339 | -2/Garrison | Triggered checkpoint 40341 | -2/Garrison | Destroyed by H-88 Terminator with KE Penetrator Last Messages --------------- 40333_ Triggered Stasis Trap. 40333_ A bubble of rippling energy engulfs the area. 40333_ Field strength at 93. 40333_ Field strength at 79. 40334_ Field strength at 65. 40335_ Field strength at 44. 40336_ B-90 Cyclops activates siege mode. 40336_ Field strength at 30. 40337_ Field strength at 16. 40338_ Stasis field depleted. 40338_ Triggered Stasis Trap. 40338_ A bubble of rippling energy engulfs the area. 40338_ Field strength at 86. 40339_ Field strength at 72. 40340_ Field strength at 58. 40341_ Field strength at 44. 40341_ C-30 ARC bursts open, deploying its payload. 40341_ H-88 Terminator unfolds itself. 40341_ Slug penetrates Wall. 40341_ Penetrated by Slug. Map ----- +----------------------------------------------------+ | ?????????????????????????????????????????????????? | | ?????????????????????????????????????????????????? | | ?????????????????????????????????????????????????? | | ?????????????????????????????????????????????????? | | ?????????????????????????????????????????????????? | | ?????????????????????????????????????????????????? | | ?????????????????????????????????????????????????? | | ?????????????????????????????????????????????????? | | ?????????????????????????????????????????????????? | | ?????????????????????????????????????????????????? | | ?????????????????????????????????????????????????? | | ?????????????????????????????????????????????????? | | ??????????????????????????????????????????+??+???? | | ?????????????????????????????????????????????????? | | ?????????????????p???????????????????????????????? | | ????????????????p????????????????????? ?????+???? | | ??????????+??????????????????????????? ?????????? | | ?????????????????????????????????????? ?????????? | | ?????????????????????????????????????# ?????????? | | ?????????????????????????????????????# +????????? | | ?????????????????????????????????????# #????????? | | ?????????+?????+ ??+pp?????????+YY???# #????????? | | ???????????????# ###+##+##+###""""## ##???????? | | ???????????????# #???????? | | ???????????????# ^ +???????? | | ???????????????# @ h #???????? | | ???????????????############%h #; ## #???????? | | ??????????????????????????# #" "# #???????? | | ??????????????????????????" "s??????? | | ??????????????????????????" BB "s??????? | | ??????????????????????????" BB "s??????? | | ??????????????????????????" "???????? | | ?????????????????????????+# #" ##^ #???????? | | ??????????????????????????# ## "# #???????? | | ??????????????????????????# #???????? | | ??????????????????????????# p +???????? | | ??????????????????????????# #???????? | | ??????????????????????????## ##""""## #???????? | | ???????????????????????????# #??????# #???????? | | ???????????????????????????# #??????# #???????? | | ???????????????????????????+ #??????# #???????? | | ???????????????????????????# #??????# #??????+? | | ???????????????????????????# #??????# #???????? | | ???????????????????????????# #??????# ###+##""" | | ?????????????????????????+?# #??????# | | ??????????????????????????? #??????# | | ??????????????????????????? #??????# | | ?????????????????/?????????####??????# #######++++ | | ?????????????????????????????????????# #?????????? | | ?????????????????????????????????????# #?????????? | +----------------------------------------------------+ Best States ------------- Heat Dissipation 105 Coolant Potential 120 Energy Generation 83 Energy Capacity 845 Matter Stores 300 Matter Capacity 300 Sight Range 22 Robot Scan Range 16 Terrain Scan Range 20 Terrain Scan Density 10 Armor Coverage 1600 Resistance: TH 10 Resistance: EM 90 Weapon Shielding 90 Point Defense Rating 240 Weapon Cycling 20 Phase Shifting 15 Evasion (%) 70 Targeting Accuracy 16 Target Analysis 8 Core Analysis 8 Armor Integrity Analysis 40 Recoil Reduction 6 Offensive Hacking 20 Defensive Hacking 10 Item Schematics ----------------- Seismic Detector | -8/Materials | Scanalyzed Lgt. Armor Plating | -7/Factory | Scanalyzed Drone Bay | -7/Factory | Scanalyzed Assault Drone Bay | -5/Zhirov | Free Exp. Heat Sink | -5/Zhirov | Free Exp. Optical Array | -5/Zhirov | Free Imp. Arc Thrower | -5/Zhirov | Free Robot Schematics ------------------ None Fabricated ------------ B-48 Gladiator | x3 | -7/Factory | Preloaded Assault Drone Bay | x1 | -3/Research Centrium Leg | x1 | -3/Research | Preloaded Repaired ---------- Imp. Light Armor Plating | 35% | -7/Factory Alien Tech Used ----------------- Integrated Reactor Dimensional Node Initializer Transdimensional Reconstructor Achievements -------------- None Challenges ------------ None Game ------ Seed ImpulseBladeFlail Manual? 0 Play Time 06:10:41 Cumulative 266.7 hours Start 2025.08.13 @ 19:23:03 End 2025.08.15 @ 07:50:01 Sessions 7 Manual Loads 0 Difficulty Rogue Special Mode None Game No. 123 Rogue 102 Adventurer 21 Explorer 0 Win Type - Total 13 Types 9/0/3/1/0/0/0/0/0/0 Lore% 48 Gallery% 66 Achievement% 61 Wizard Run 0 Options --------- Layout 1 ASCII 0 Keyboard 0 Movement Mouse Keybinds 0 Fullscreen 2 Font 32/SmallcapsGlow Map View 77x35 Zoom Use 0% Tactical HUD 1 Map Filters NONE Filters NONE Steam 1 RUN: 35754fa2-def5-48e1-9764-51f28ca69ce5